{"text_format":"3","workbook":"xlsx","n_sheets":17,"sheets":["Suma","Część 01","Część 02","Część 03","Część 04","Część 05","Część 06","Część 07","Część 08","Część 09","Część 10","Część 11","Część 12","Część 13","Część 14","Część 15","Część 16"],"not_rendered":{"macros":1,"defined_names":8},"read":"whole","date_system":"1900"}

{"sheet":"Suma","index":0,"n_rows":20,"n_cols":3,"rows_kept":20,"merged":[[1,0,2,0],[1,1,2,1],[1,2,2,2]]}
[]
["Pakiet","odwołanie","Nazwa"]
[]
[{"$f":"'Część 01'!$A$4","v":"Część 01"},{"$f":"HYPERLINK(\"#'Część 01'!A1\",\"przejdz do\")","v":"przejdz do"},{"$f":"'Część 01'!$A$5","v":"Agar Aloa"}]
[{"$f":"'Część 02'!$A$4","v":"Część 02"},{"$f":"HYPERLINK(\"#'Część 02'!A1\",\"przejdz do\")","v":"przejdz do"},{"$f":"'Część 02'!$A$5","v":"Podłoża granulaty i dodatki do podłóż"}]
[{"$f":"'Część 03'!$A$4","v":"Część 03"},{"$f":"HYPERLINK(\"#'Część 03'!A1\",\"przejdz do\")","v":"przejdz do"},{"$f":"'Część 03'!$A$5","v":"Podłoże gotowe "}]
[{"$f":"'Część 04'!$A$4","v":"Część 04"},{"$f":"HYPERLINK(\"#'Część 04'!A1\",\"przejdz do\")","v":"przejdz do"},{"$f":"'Część 04'!$A$5","v":"Podłoża do diagnostyki medycznej - część 1"}]
[{"$f":"'Część 05'!$A$4","v":"Część 05"},{"$f":"HYPERLINK(\"#'Część 05'!A1\",\"przejdz do\")","v":"przejdz do"},{"$f":"'Część 05'!$A$5","v":"Podłoża i dodatki podłóż "}]
[{"$f":"'Część 06'!$A$4","v":"Część 06"},{"$f":"HYPERLINK(\"#'Część 06'!A1\",\"przejdz do\")","v":"przejdz do"},{"$f":"'Część 06'!$A$5","v":"Podłoża gotowe na płytkach do Legionella sp."}]
[{"$f":"'Część 07'!$A$4","v":"Część 07"},{"$f":"HYPERLINK(\"#'Część 07'!A1\",\"przejdz do\")","v":"przejdz do"},{"$f":"'Część 07'!$A$5","v":"Pożywki do oznaczania Legionella spp. "}]
[{"$f":"'Część 08'!$A$4","v":"Część 08"},{"$f":"HYPERLINK(\"#'Część 08'!A1\",\"przejdz do\")","v":"przejdz do"},{"$f":"'Część 08'!$A$5","v":"Podłoża gotowe do oznaczania gronkowców"}]
[{"$f":"'Część 09'!$A$4","v":"Część 09"},{"$f":"HYPERLINK(\"#'Część 09'!A1\",\"przejdz do\")","v":"przejdz do"},{"$f":"'Część 09'!$A$5","v":"Podłoża gotowe do diagnostyki medycznej - część 2"}]
[{"$f":"'Część 10'!$A$4","v":"Część 10"},{"$f":"HYPERLINK(\"#'Część 10'!A1\",\"przejdz do\")","v":"przejdz do"},{"$f":"'Część 10'!$A$5","v":"Podłoża do Campylobacter i Cronobacter"}]
[{"$f":"'Część 11'!$A$4","v":"Część 11"},{"$f":"HYPERLINK(\"#'Część 11'!A1\",\"przejdz do\")","v":"przejdz do"},{"$f":"'Część 11'!$A$5","v":"Podłoża Salmonella "}]
[{"$f":"'Część 12'!$A$4","v":"Część 12"},{"$f":"HYPERLINK(\"#'Część 12'!A1\",\"przejdz do\")","v":"przejdz do"},{"$f":"'Część 12'!$A$5","v":"Podłoża do oznaczania colifagów"}]
[{"$f":"'Część 13'!$A$4","v":"Część 13"},{"$f":"HYPERLINK(\"#'Część 13'!A1\",\"przejdz do\")","v":"przejdz do"},{"$f":"'Część 13'!$A$5","v":"Podłoża gotowe do diagnostyki medycznej - część 3"}]
[{"$f":"'Część 14'!$A$4","v":"Część 14"},{"$f":"HYPERLINK(\"#'Część 14'!A1\",\"przejdz do\")","v":"przejdz do"},{"$f":"'Część 14'!$A$5","v":"L.T Eugon- bulion"}]
[{"$f":"'Część 15'!$A$4","v":"Część 15"},{"$f":"HYPERLINK(\"#'Część 15'!A1\",\"przejdz do\")","v":"przejdz do"},{"$f":"'Część 15'!$A$5","v":"Suplement selektywny D-cykloseryna (do podłoża TSC) "}]
[{"$f":"'Część 16'!$A$4","v":"Część 16"},{"$f":"HYPERLINK(\"#'Część 16'!A1\",\"przejdz do\")","v":"przejdz do"},{"$f":"'Część 16'!$A$5","v":"Suplementy Legionella spp. "}]
[null,null,"SUMA"]

{"sheet":"Część 01","index":1,"n_rows":30,"n_cols":10,"rows_kept":30,"merged":[[0,6,0,9],[2,0,2,9],[3,0,3,9],[4,0,4,9],[6,1,8,1],[6,2,8,2],[6,3,8,3],[6,4,6,5],[6,6,8,6],[6,7,8,7],[6,8,8,8],[6,9,8,9],[7,4,8,4],[7,5,8,5],[12,1,12,8],[13,2,13,9],[14,2,14,9],[18,2,18,9],[26,2,26,9]]}
[null,null,"AGZ.272.1.2024",{"$nulls":3},"Załącznik 1A do SWZ"]
[]
["OPIS PRZEDMIOTU ZAMÓWIENIA - KALKULACJA CENY OFERTY"]
[{"$f":"MID(CELL(\"nazwa_pliku\",A1),FIND(\"]\",CELL(\"nazwa_pliku\",A1),1)+1,100)","v":"Część 01"}]
["Agar Aloa"]
[{"$f":"HYPERLINK(\"#'Suma'!A1\",\"wstecz\")","v":"wstecz"}]
[null,"L.p.","Przedmiot zamówienia","Szczegółowy opis","Opis oferowanego produktu",null,"Jednostka miary","Ilość","Cena jednostkowa brutto [zł] **","Wartość brutto [zł] "]
[{"$nulls":4},"Producent*","Nr katalogowy producenta*"]
[]
[null,"1.","Agar aloa","• zastosowanie: Listeria monocytogenes;\n• gotowe podłoże:\n  - pepton mięsny - 18,0 g/l;\n  - pepton kazeinowy - 6,0 g/l;\n  - ekstrakt drożdżowy - 10,0 g/l;\n  - pirogronian sodu - 2,0 g/l;\n  - glukoza - 2,0 g/l;\n  - glicerofosforan magnezu - 1,0 g/l;\n  - siarczan magnezu - 0,5 g/l;\n  - chlorek sodu - 5,0 g/l;\n  - chlorek litu - 10,0 g/l;\n  - wodorofosforan disodowy - 2,5 g/l;\n  - 5-bromo-4-chloro-3-indolylo-β-d- glukopiranozydu - 0,05 g/l;\n  - L-α-fosfatidyloinozytol (surowy ekstrakt z lecytyny sojowej) - 2,0 g/l;\n  - kwas nalidyksowy-  0,02 g/l;\n  - ceftazidim - 0,02 g/l;\n  - polimyksyna B (76700 IU) - 0,02 g/l;\n  - amfoterycyna B - 0,01 g/l lub \ncykloheksamid 0,01-0,05 g/l;\n  - agar-agar - 13,0 - 15,0 g/l;\n• pakowanie: 10 lub 20 płytek w opakowaniu.",null,null,"płytka",2200,null,{"$f":"H10*I10","v":{"v":0,"d":"0.00"}}]
[null,"2.","Agar aloa","• zastosowanie: Listeria monocytogenes;\n• gotowe podłoże:\n  - pepton mięsny - 18,0 g/l;\n  - pepton kazeinowy - 6,0 g/l;\n  - ekstrakt drożdżowy - 10,0 g/l;\n  - pirogronian sodu - 2,0 g/l;\n  - glukoza - 2,0 g/l;\n  - glicerofosforan magnezu - 1,0 g/l;\n  - siarczan magnezu - 0,5 g/l;\n  - chlorek sodu - 5,0 g/l;\n  - chlorek litu - 10,0 g/l;\n  - wodorofosforan disodowy - 2,5 g/l;\n  - 5-bromo-4-chloro-3-indolylo-β-d- glukopiranozydu - 0,05 g/l;\n  - L-α-fosfatidyloinozytol (surowy ekstrakt z lecytyny sojowej) - 2,0 g/l;\n  - kwas nalidyksowy-  0,02 g/l;\n  - ceftazidim - 0,02 g/l;\n  - polimyksyna B (76700 IU) - 0,02 g/l;\n  - amfoterycyna B - 0,01 g/l  lub \ncykloheksamid 0,01-0,05 g/l;\n  - agar-agar - 13,0 - 15,0 g/l;\n• pakowanie: 10 lub 20 płytek w opakowaniu.",null,null,"płytka",680,null,{"$f":"H11*I11","v":{"v":0,"d":"0.00"}}]
[null,"3.","Agar aloa","• zastosowanie: Listeria monocytogenes;\n• gotowe podłoże:\n  - pepton mięsny - 18,0 g/l;\n  - pepton kazeinowy - 6,0 g/l;\n  - ekstrakt drożdżowy - 10,0 g/l;\n  - pirogronian sodu - 2,0 g/l;\n  - glukoza - 2,0 g/l;\n  - glicerofosforan magnezu - 1,0 g/l;\n  - siarczan magnezu - 0,5 g/l;\n  - chlorek sodu - 5,0 g/l;\n  - chlorek litu - 10,0 g/l;\n  - wodorofosforan disodowy - 2,5 g/l;\n  - 5-bromo-4-chloro-3-indolylo-β-d- glukopiranozydu - 0,05 g/l;\n  - L-α-fosfatidyloinozytol (surowy ekstrakt z lecytyny sojowej) - 2,0 g/l;\n  - kwas nalidyksowy-  0,02 g/l;\n  - ceftazidim - 0,02 g/l;\n  - polimyksyna B (76700 IU) - 0,02 g/l;\n  - amfoterycyna B - 0,01 g/l  lub \ncykloheksamid 0,01-0,05 g/l;\n  - agar-agar - 13,0 - 15,0 g/l;\n• pakowanie: 10 lub 20 płytek w opakowaniu.",null,null,"płytka",1280,null,{"$f":"H12*I12","v":{"v":0,"d":"0.00"}}]
[null,"Cena oferty (brutto):",{"$nulls":7},{"$f":"SUM(J10:J12)","v":{"v":0,"d":"0.00"}}]
[null,"*","Należy wpisać nazwę producenta oraz numer katalogowy producenta oferowanego produktu. Niepodanie ww. danych będzie skutkować odrzuceniem oferty, chyba że dane te będą jednoznacznie wynikać z innych dokumentów dołączonych do oferty."]
[null,"**","Zawiera podatek od towarów i usług (VAT) wg obowiązującej stawki oraz koszty wszystkich świadczeń niezbędnych do wykonania zamówienia, w szczególności koszty transportu, ubezpieczenia, opakowania (także kaucjonowanego) itp."]
[]
[null,"Wymagania dodatkowe:"]
[]
[null,"1.","Do dostawy wymagany certyfikat jakości lub inny dokument potwierdzający jakość produktu w języku polskim lub angielskim w wersji papierowej lub dostępny w formie elektronicznej w miejscu wskazanym przez Wykonawcę (adres strony www). "]
[null,"2.","Certyfikat lub inny dokument musi zawierać:"]
[null,null,"• nazwę produktu,"]
[null,null,"• nazwę producenta,"]
[null,null,"• data ważności lub okres ważności produktu,"]
[null,null,"• skład podłoża,"]
[null,null,"• ogólną charakterystykę,"]
[null,null,"• charakterystykę mikrobiologiczną (w tym wyniki kontroli mikrobiologicznej szczepami odniesienia z kolekcji WDCM i/lub ATCC)."]
[null,"3.","Okres ważności: min. 11 tygodni od daty dostawy."]
[null,"4.","Miejsce dostawy:\n","WSSE w Krakowie  ul. Prądnicka 76, 31-202 Kraków - dla poz. 1\n"]
[{"$nulls":3},"WSSE Oddział Laboratoryjny w Tarnowie  ul. Mościckiego 10,  33-100 Tarnów - dla poz. 2        \n"]
[{"$nulls":3},"WSSE Oddział Laboratoryjny w Wadowicach  ul. Teatralna 2, 34-100 Wadowice - dla poz. 3\n"]

{"sheet":"Część 02","index":2,"n_rows":91,"n_cols":10,"rows_kept":91,"merged":[[0,6,0,9],[2,0,2,9],[3,0,3,9],[4,0,4,9],[6,1,8,1],[6,2,8,2],[6,3,8,3],[6,4,6,5],[6,6,8,6],[6,7,8,7],[6,8,8,8],[6,9,8,9],[7,4,8,4],[7,5,8,5],[72,1,72,8],[73,2,73,9],[74,2,74,9],[78,2,78,9],[86,2,86,9],[87,2,87,7],[88,3,88,8],[89,3,89,8],[90,3,90,8]]}
[null,null,{"$f":"'Część 01'!$C$1","v":"AGZ.272.1.2024"},{"$nulls":3},"Załącznik 1A do SWZ - zmiana z dnia 18.03.2024 r."]
[]
["OPIS PRZEDMIOTU ZAMÓWIENIA - KALKULACJA CENY OFERTY"]
[{"$f":"MID(CELL(\"nazwa_pliku\",A1),FIND(\"]\",CELL(\"nazwa_pliku\",A1),1)+1,100)","v":"Część 02"}]
["Podłoża granulaty i dodatki do podłóż"]
[{"$f":"HYPERLINK(\"#'Suma'!A1\",\"wstecz\")","v":"wstecz"}]
[null,"L.p.","Przedmiot zamówienia","Szczegółowy opis","Opis oferowanego produktu",null,"Jednostka miary","Ilość","Cena jednostkowa brutto [zł] **","Wartość brutto [zł] "]
[{"$nulls":4},"Producent*","Nr katalogowy producenta*"]
[]
[null,"1.","Agar aloa- agar Ottaviani agosti Chromocult","• zastosowanie: Listeria monocytogenes;\n• podłoże granulat:\n  - pepton mięsny - 18,0 g/l;\n  - pepton kazeinowy - 6,0 g/l;\n  - ekstrakt drożdżowy - 10,0 g/l;\n  - pirogronian sodu - 2,0 g/l;\n  - glukoza - 2,0 g/l;\n  - glicerofosforan magnezu - 1,0 g/l;\n  - siarczan magnezu - 0,5 g/l;\n  - chlorek sodu - 5,0 g/l;\n  - chlorek litu - 10,0 g/l;\n  - wodorofosforan disodowy - 2,5 g/l;\n  - 5-bromo-4-chloro-3-indolylo-β-d- glukopiranozydu - 0,05 g/l;\n  - agar-agar - 13,0 - 15,0 g/l.\n",null,null,"op. = \n500g",1,null,{"$f":"H10*I10","v":{"v":0,"d":"0.00"}}]
[null,"2.","Agar aloa- agar Ottaviani agosti Chromocult","• zastosowanie: Listeria monocytogenes;\n• podłoże granulat:\n  - pepton mięsny - 18,0 g/l;\n  - pepton kazeinowy - 6,0 g/l;\n  - ekstrakt drożdżowy - 10,0 g/l;\n  - pirogronian sodu - 2,0 g/l;\n  - glukoza - 2,0 g/l;\n  - glicerofosforan magnezu - 1,0 g/l;\n  - siarczan magnezu - 0,5 g/l;\n  - chlorek sodu - 5,0 g/l;\n  - chlorek litu - 10,0 g/l;\n  - wodorofosforan disodowy - 2,5 g/l;\n  - 5-bromo-4-chloro-3-indolylo-β-d- glukopiranozydu - 0,05 g/l;\n  - agar-agar - 13,0 - 15,0 g/l.\n",null,null,"op. = \n500g",1,null,{"$f":"H11*I11","v":{"v":0,"d":"0.00"}}]
[null,"3.","Agar aloa- agar Ottaviani agosti Chromocult","• zastosowanie: Listeria monocytogenes;\n• podłoże granulat:\n  - pepton mięsny - 18,0 g/l;\n  - pepton kazeinowy - 6,0 g/l;\n  - ekstrakt drożdżowy - 10,0 g/l;\n  - pirogronian sodu - 2,0 g/l;\n  - glukoza - 2,0 g/l;\n  - glicerofosforan magnezu - 1,0 g/l;\n  - siarczan magnezu - 0,5 g/l;\n  - chlorek sodu - 5,0 g/l;\n  - chlorek litu - 10,0 g/l;\n  - wodorofosforan disodowy - 2,5 g/l;\n  - 5-bromo-4-chloro-3-indolylo-β-d- glukopiranozydu - 0,05 g/l;\n  - agar-agar - 13,0 - 15,0 g/l.\n",null,null,"op. = \n500g",1,null,{"$f":"H12*I12","v":{"v":0,"d":"0.00"}}]
[null,"4.","Aloa - Suplement  Enrichment "," - L-α-fosfatidyloinozytol (surowy ekstrakt z lecytyny sojowej) - 2,0 g/l.",null,null,"op.= \n10 fiolek",2,null,{"v":0,"d":"0.00"}]
[null,"5.","Aloa - Suplement  Enrichment "," - L-α-fosfatidyloinozytol (surowy ekstrakt z lecytyny sojowej) - 2,0 g/l.",null,null,"op.= \n10 fiolek",2,null,{"v":0,"d":"0.00"}]
[null,"6.","Aloa - Suplement  Erichment "," - L-α-fosfatidyloinozytol (surowy ekstrakt z lecytyny sojowej) - 2,0 g/l.",null,null,"op.= 10 fiolek",2,null,{"v":0,"d":"0.00"}]
[null,"7.","Aloa - Suplement  selektywny "," - kwas nalidyksowy-  0,02 g/l;\n  - ceftazidim - 0,02 g/l;\n  - polimyksyna B (76700 IU) - 0,02 g/l;\n  - amfoterycyna B - 0,01 g/l.",null,null,"op.= 10 fiolek",2,null,{"v":0,"d":"0.00"}]
[null,"8.","Aloa - Suplement  selektywny "," - kwas nalidyksowy-  0,02 g/l;\n  - ceftazidim - 0,02 g/l;\n  - polimyksyna B (76700 IU) - 0,02 g/l;\n  - amfoterycyna B - 0,01 g/l.",null,null,"op.= \n10 fiolek",2,null,{"v":0,"d":"0.00"}]
[null,"9.","Aloa - Suplement  selektywny "," - kwas nalidyksowy-  0,02 g/l;\n  - ceftazidim - 0,02 g/l;\n  - polimyksyna B (76700 IU) - 0,02 g/l;\n  - amfoterycyna B - 0,01 g/l.",null,null,"op.= \n10 fiolek",2,null,{"v":0,"d":"0.00"}]
[null,"10.","Agar wybiórczy dla Pseudomonas","• zastosowanie: wykrywanie bakterii Pseudomonas aeruginosa w wodzie;\n• postać podłoża: granulat;\n• skład podłoża:\n- pepton z żelatyny - 16,0 g/l,\n- hydrolizat kazeiny - 10,0 g/l,\n- siarczan potasu - 10,0 g/l,\n- chlorek magnezu - 1,4 g/l,\n- agar-agar - 11,0 - 14 g/l.\n",null,null,"op.= \n500g",1,null,{"v":0,"d":"0.00"}]
[null,"11.","Agar z ekstraktem drożdżowym ","• granulat;\n• skład podłoża:  \n  - pepton z kazeiny (trypton) - 6,0 g/l,\n  - wyciąg drożdżowy - 3,0 g/l,\n  - agar-agar – 12,0 -16,0 g/l.",null,null,"op.= \n500g",5,null,{"v":0,"d":"0.00"}]
[null,"12.","Agar z ekstraktem drożdżowym ","• granulat;\n• skład podłoża:  \n  - pepton z kazeiny (trypton) - 6,0 g/l,\n  - wyciąg drożdżowy - 3,0 g/l,\n  - agar-agar – 12,0 -16,0 g/l.",null,null,"op.= \n500g",3,null,{"v":0,"d":"0.00"}]
[null,"13.","Agar z ekstraktem drożdżowym ","• granulat;\n• skład podłoża:  \n  - pepton z kazeiny (trypton) - 6,0 g/l,\n  - wyciąg drożdżowy - 3,0 g/l,\n  - agar-agar – 12,0 -16,0 g/l.",null,null,"op.= \n500g",3,null,{"$f":"H22*I22","v":{"v":0,"d":"0.00"}}]
[null,"14.","Baird - Parker Agar ","• zastosowanie: gronkowce koagulazo-dodatnie;\n• granulat;                                                \n• skład podłoża:\n - pepton z kazeiny – 10,0 g/l;\n - ekstrakt mięsny  5,0 g/l;\n - ekstrakt drożdżowy – 1,0 g/l;\n - pirogronian sodowy -10,0 g/l;\n - glicyna – 12,0 g/l;\n - chlorek litu - 5,0 g/l;\n - agar-agar 12,0 -15,0 g/l.\n",null,null,"op.= \n500g",1,null,{"v":0,"d":"0.00"}]
[null,"15.","Baird - Parker Agar ","• zastosowanie: gronkowce koagulazo-dodatnie;\n• granulat;                                                \n• skład podłoża:\n - pepton z kazeiny – 10,0 g/l;\n - ekstrakt mięsny  5,0 g/l;\n - ekstrakt drożdżowy – 1,0 g/l;\n - pirogronian sodowy -10,0 g/l;\n - glicyna – 12,0 g/l;\n - chlorek litu - 5,0 g/l;\n - agar-agar 12,0 -15,0 g/l.\n",null,null,"op.= \n500g",2,null,{"v":0,"d":"0.00"}]
[null,"16.","Baird-Parker Suplement (Dodatek kurzego jaja z tellurynem)","• zastosowanie: umożliwia wykrycie aktywności lecytynazy i redukcji tellurynu;                                                   \n• skład fiolki: \n - sterylna emulsja jaja, \n - NaCl, \n - telluryn potasu.                                                                                                         \n",null,null,"op.= 10 ampułek po 50ml",1,null,{"v":0,"d":"0.00"}]
[null,"17.","Baird-Parker Suplement (Dodatek kurzego jaja z tellurynem)","• zastosowanie: umożliwia wykrycie aktywności lecytynazy i redukcji tellurynu;                                                   \n• skład fiolki: \n - sterylna emulsja jaja, \n - NaCl, \n - telluryn potasu.                                                                                                         \n",null,null,"op.= 10 ampułek po 50ml",2,null,{"v":0,"d":"0.00"}]
[null,"18.","CCA Agar\n","• Zastosowanie: pożywka chromogenna do oznaczenia liczby bakterii z grupy coli i Escherichia coli;\n• granulat;\n• skład [g/l]:\n- enzymatyczny hydrolizat kazeiny 1,0,\n- ekstrakt drożdżowy 2,0,                                                       \n- chlorek sodu 5,0,                                        \n- dwuwodorofosforan sodu 2,2,                                                  \n- jednowodorofosforan dwusodowy 2,7,                                                  \n- pirogronian sodu 1,0,                                                          \n- sorbitol 1,0,                                                         \n- tryptofan 1,0,                                                              \n- alkohol np. Tergitol 0,15,                                                      \n- 6-chloro-3-indoksylo-β-D-galaktopyranoside 0,2,                                                                     \n- 5-bromo-4-chloro-3-indoxyl-β-D-glukuronic acid 0,1,                                                   \n- isopropyl-β-D-thiogalactopyranoside (IPTG) 0,1,                                                           \n- agar agar 9,0 -18,0 g/l.               ",null,null,"op. = \n500g",3,null,{"v":0,"d":"0.00"}]
[null,"19.","CCA Agar\n","• Zastosowanie: pożywka chromogenna do oznaczenia liczby bakterii z grupy coli i Escherichia coli;\n• granulat;\n• skład [g/l]:\n- enzymatyczny hydrolizat kazeiny 1,0,\n- ekstrakt drożdżowy 2,0,                                                       \n- chlorek sodu 5,0,                                        \n- dwuwodorofosforan sodu 2,2,                                                  \n- jednowodorofosforan dwusodowy 2,7,                                                  \n- pirogronian sodu 1,0,                                                          \n- sorbitol 1,0,                                                         \n- tryptofan 1,0,                                                              \n- alkohol np. Tergitol 0,15,                                                      \n- 6-chloro-3-indoksylo-β-D-galaktopyranoside 0,2,                                                                     \n- 5-bromo-4-chloro-3-indoxyl-β-D-glukuronic acid 0,1,                                                   \n- isopropyl-β-D-thiogalactopyranoside (IPTG) 0,1,                                                           \n- agar agar 9,0 -18,0 g/l.               ",null,null,"op. = \n500g",1,null,{"v":0,"d":"0.00"}]
[null,"20.","CCDA suplement selektywny","• zastosowanie: dodatek wybiórczy do przygotowania agaru CCDA;\n• skład ampułki:\n  - Amfoterycyna B - 5,0 mg;\n  - Cefoperazon - 16,0 mg.\n",null,null,"1 op.=10 fiolek",1,null,{"v":0,"d":"0.00"}]
[null,"21.","Chapmana Agar  z mannitolem, solą i czerwienią fenolową","• zastosowanie: do wykrywania gronkowców chorobotwórczych;\n• granulat;\n• skład podłoża:  \n  - peptony - 10,0 g/l,\n  - ekstrakt mięsny - 1,0 g/l,\n  - chlorek sodowy - 75,0 g/l,\n  - D (-) mannitol - 10,0 g/l,\n  - czerwień fenolowa - 0,025 g/l,\n  - agar-agar - 12,0 -15,0 g/l.",null,null,"op. = 500g",2,null,{"v":0,"d":"0.00"}]
[null,"22.","CN Suplement","• zastosowanie: dodatetek do agaru dla Pseudomonas podstawa, do przygotowania pożywki do izolacji Pseudomonas aeruginosa z wody;\n• sklad ampułki:\n  - cetrymid 100 mg,\n  - kwas nalidyksowy 7,5 mg.",null,null,"op. = 10 ampułek",3,null,{"v":0,"d":"0.00"}]
[null,"23.","CN Suplement","• zastosowanie: dodatetek do agaru dla Pseudomonas podstawa, do przygotowania pożywki do izolacji Pseudomonas aeruginosa z wody;\n• sklad ampułki:\n  - cetrymid 100 mg,\n  - kwas nalidyksowy 7,5 mg.",null,null,"op. = 10 ampułek",1,null,{"v":0,"d":"0.00"}]
[null,"24.","Agar z cetrymidem ","•   zastosowanie: agar wybiórczy dla Pseudomonas                                                                                                                \n• Skład podłoża:  \n- trzustkowy hydrolizat żelatyny - 20,0 g/l\n- chlorek magnezu - 1,4 g/l\n- siarczan potasu - 10,0 g/l\n- bromek N-cetyl-N,N,N-trimetyloamnonowy – (cetrymid) - 0,3 g/l\n- agar 12,0-15,0 g/l, \n\n ",null,null,"op.= \n500g",1,null,{"v":0,"d":"0.00"}]
[null,"25.","DRBC","• Zastosowanie: do oznaczania liczebności pleśni i drożdży w produktach o wysokim stopniu uwodnienia\n• granulat                                                                          \n• Skład:\n - pepton – 5 g/l\n - glukoza – 10 g/l\n - kwaśny fosforan potasowy – 1 g/l\n - siarczan magnezu – 0,5 g/l\n - róż bengalski – 0,025 g/l\n - chloramfenikol – 0,1 g/l\n - dichloran – 0,002 g/l\n - agar– 12-15 g/l\n        ",null,null,"op.= \n500g",1,null,{"v":0,"d":"0.00"}]
[null,"26.","Frasera Bulion (podłoże) ","• zastosowanie: Listeria monocytogenes;\n• granulat;                                                \n• skład podłoża:\n - enzymatyczny hydrolizat tkanek zwierzęcych - 5,0 g/l,\n - pepton kazeinowy – 5,0 g/l,\n - ekstrakt drożdżowy – 5,0 g/l,\n - ekstrakt mięsny - 5,0 g/l,\n - chlorek sodu – 20,0 g/l,\n - fosforan dwusodowy – 9,6 g/l,                             - wodorofosforan disodowy bezwodny-9,6 g/l (równoważny disodu wodorofosforan dwuwodny - 12,0 g/l)\n - fosforan dwupotasowy – 1,35 g/l,                       - diwodorofosforan potasowy 1,35 g/l,                         \n - eskulina – 1,0 g/l,\n - chlorek litu – 3,0 g/l.\n",null,null,"op.= \n500g",1,null,{"v":0,"d":"0.00"}]
[null,"27.","Fraser suplement - cytrynian (dodatek wzbogacający) ","• dodatek zawierający cytrynian żelazawo-amonowy;\n• zawartość 1 ampułki: 250 mg cytrynianu żelazawo - amonowego.",null,null,"op.=10 ampułek",2,null,{"v":0,"d":"0.00"}]
[null,"28.","Fraser suplement - cytrynian (dodatek wzbogacający) ","• dodatek zawierający cytrynian żelazawo-amonowy;\n• zawartość 1 ampułki: 250 mg cytrynianu żelazawo - amonowego.",null,null,"op.=10 ampułek",3,null,{"v":0,"d":"0.00"}]
[null,"29.","Fraser suplement (dodatek selektywny) ","• dodatek zawierający akryflawinę i kwas nalidiksowy;\n• zawartość 1 ampułki:\n - 6,25 mg akryflawiny;\n - 5 mg kwasu nalidiksowego.\n",null,null,"op.=10 ampułek",2,null,{"v":0,"d":"0.00"}]
[null,"30.","Fraser suplement (dodatek selektywny) ","• dodatek zawierający akryflawinę i kwas nalidiksowy;\n• zawartość 1 ampułki:\n - 6,25 mg akryflawiny;\n - 5 mg kwasu nalidiksowego.\n",null,null,"op.=10 ampułek",4,null,{"v":0,"d":"0.00"}]
[null,"31.","Kligler Agar\n","• zastosowanie: do różnicowania pałeczek jelitowych; \n• granulat;\n• skład podłoża:\n - peptony 20,0 g/l; \n - chlorek sodowy 5 g/l;\n - laktoza 10 g/l;\n - D(+)glukoza 1,0 g/l;\n - amonu-żelaza (III) cytrynian 0,5 g/l;\n - sodu tiosiarczan (VI) 0,5 g/l;\n - czerwień fenolowa 0,024 g/l;\n - agar 16,0- 20,0  g/l.\n",null,null,"op.= \n500g",7,null,{"v":0,"d":"0.00"}]
[null,"32.","Mc Conkey’a Agar ","• zastosowanie: pożywka wybiórcza do izolacji pałeczek Gramujemnych; \n• granulat\n• skład podłoża:\n- pepton z żelatyny - 17,0 g/l;\n- pepton z kazeiny - 1,5 g/l;\n- pepton z mięsa 1,5 g/l;\n- chlorek sodowy- 5,0 g/l;\n- mieszanina soli żółciowych- 1,5 g/l;\n- czerwień neutralna 0,03 g/l;\n- fiolet krystaliczny 0,001 g/l;\n- laktoza -10,0 g/l;\n- agar-13,0 - 15,0 g/l.\n",null,null,"op. = \n500g",11,null,{"v":0,"d":"0.00"}]
[null,"33.","Mc Conkey’a Agar ","• zastosowanie: pożywka wybiórcza do izolacji pałeczek Gramujemnych; \n• granulat\n• skład podłoża:\n- pepton z żelatyny - 17,0 g/l;\n- pepton z kazeiny - 1,5 g/l;\n- pepton z mięsa 1,5 g/l;\n- chlorek sodowy- 5,0 g/l;\n- mieszanina soli żółciowych- 1,5 g/l;\n- czerwień neutralna 0,03 g/l;\n- fiolet krystaliczny 0,001 g/l;\n- laktoza -10,0 g/l;\n- agar-13,0 - 15,0 g/l.\n",null,null,"op. = \n500g",71,null,{"v":0,"d":"0.00"}]
[null,"34.","Muller Kaufmann Bulion \n","• zastosowanie: Salmonella;\n• granulat;\n• skład:\n - ekstrakt mięsny - 4,3 g/l;\n - pepton z kazeiny - 8,6  g/l;\n - chlorek sodu - 2,6 g/l;\n - węglan wapnia - 38,7 g/l;\n - tiosiarczan (VI) sodu bezwodny (równoważne 47,8 g tiosiarczanu sodu x 5 H2O) - 30,5 g/l;\n - żółć wołowa - 4,78 g/l;\n - zieleń brylantowa - 0,0096 g/l;\n - nowobiocyna - 0,040 g/l.\n",null,null,"op. = \n500g",1,null,{"v":0,"d":"0.00"}]
[null,"35.","Muller Kaufmann Bulion \n","• zastosowanie: Salmonella;\n• granulat;\n• skład:\n - ekstrakt mięsny - 4,3 g/l;\n - pepton z kazeiny - 8,6  g/l;\n - chlorek sodu - 2,6 g/l;\n - węglan wapnia - 38,7 g/l;\n - tiosiarczan (VI) sodu bezwodny (równoważne 47,8 g tiosiarczanu sodu x 5 H2O) - 30,5 g/l;\n - żółć wołowa - 4,78 g/l;\n - zieleń brylantowa - 0,0096 g/l;\n - nowobiocyna - 0,040 g/l.\n",null,null,"op. = \n500g",1,null,{"v":0,"d":"0.00"}]
[null,"36.","Muller Kaufmann Bulion \n","• zastosowanie: Salmonella;\n• granulat;\n• skład:\n - ekstrakt mięsny - 4,3 g/l;\n - pepton z kazeiny - 8,6  g/l;\n - chlorek sodu - 2,6 g/l;\n - węglan wapnia - 38,7 g/l;\n - tiosiarczan (VI) sodu bezwodny (równoważne 47,8 g tiosiarczanu sodu x 5 H2O) - 30,5 g/l;\n - żółć wołowa - 4,78 g/l;\n - zieleń brylantowa - 0,0096 g/l;\n - nowobiocyna - 0,040 g/l.\n",null,null,"op. = \n500g",2,null,{"v":0,"d":"0.00"}]
[null,"37.","MYP Agar","• zastosowanie: do badań mikrobiologicznych w kierunku Bacillus cereus;\n• postać podłoża:\n- granulat;\n• skład podłoża:\n - pepton z kazeiny - 10 g/l;\n - ekstrakt mięsny - 1 g/l;\n - D(-)mannitol - 10 g/l;\n - chlorek sodowy - 10 g/l;\n - czerwień fenolowa - 0,025 g/l;\n - agar12,0 -15,0 g/l.\n\n",null,null,"op. = \n500g",1,null,{"v":0,"d":"0.00"}]
[null,"38.","MYP Suplement ","• polimyksyna B…50.000 IU/fiolkę;                    \n\n",null,null,"op.=10 ampułek",1,null,{"v":0,"d":"0.00"}]
[null,"39.","MYP Suplement ","• polimyksyna B-50.000 IU/fiolkę;                    \n\n",null,null,"op.=10 ampułek",1,null,{"v":0,"d":"0.00"}]
[null,"40.","MYP suplement (dodatek kurzego jaja)","• sterylne żółtka jaj;\n• chlorek sodu 4,25 g;\n",null,null,"op.=10 ampułek po 100ml",1,null,{"v":0,"d":"0.00"}]
[null,"41.","MYP suplement (dodatek kurzego jaja)","• sterylne żółtka jaj;\n• chlorek sodu 4,25 g.",null,null,"op.=10 ampułek po 100ml",1,null,{"v":0,"d":"0.00"}]
[null,"42.","ONPG (o-Nitrophenyl β-D-galactopyranoside)","• zastosowanie: Salmonella;\n• biały proszek;\n• zawartość min. 98% (enzymatic), C12H15NO8, warunki przechowywania -20 st.C.",null,null,"op.= \n1g",1,null,{"v":0,"d":"0.00"}]
[null,"43.","Palcam Suplement","• zastosowanie: dodatetek do agaru Palcam podstawa;\n• sklad ampułki:\n  - siarczan polimyksyny B 5,0 mg,\n  - ceftazydym 12,0 mg\n - akryflawina 2,5 mg\n ",null,null,"op.=10 ampułek",1,null,{"v":0,"d":"0.00"}]
[null,"44.","Pepton z mięsa wyciąg pepsynowy","• granulat;\n• zastosowanie: dla mikrobiologii;\n• pH (5% roztwór wodny) 6,5-7,5; \n• azot ogólny: 12,0-13,0 %;\n• azot aminowy: 4,5-6,5 %.\n\n",null,null,"op.= \n1kg",1,null,{"v":0,"d":"0.00"}]
[null,"45.","Podloże Slanetz-Bartley","• zastosowanie: do określania liczby enterokoków w wodzie i innych płynach metodą filtracji membranowej,\n• skład podłoża:\n- tryptoza 20,0 g/l;                             \n- ekstrakt drożdżowy 5,0 g/l;\n- glukoza 2,0 g/l;\n- wodorofosforan dipotasowy 4,0 g/l; \n- azydek sodowy 0,4 g/l; \n- TTC (chlorek 2,3,5-trifenylotetrazoliowy)\n0,1 g/l;\n- agar-agar 10,0-15,0 g/l.\n",null,null,"op.= \n500g",3,null,{"v":0,"d":"0.00"}]
[null,"46.","Podloże Slanetz-Bartley","• zastosowanie: do określania liczby enterokoków w wodzie i innych płynach metodą filtracji membranowej,\n• skład podłoża:\n- tryptoza 20,0 g/l;                             \n- ekstrakt drożdżowy 5,0 g/l;\n- glukoza 2,0 g/l;\n- wodorofosforan dipotasowy 4,0 g/l; \n- azydek sodowy 0,4 g/l; \n- TTC (chlorek 2,3,5-trifenylotetrazoliowy)\n0,1 g/l;\n- agar-agar 10,0-15,0 g/l.\n",null,null,"op.= \n500g",2,null,{"v":0,"d":"0.00"}]
[null,"47.","RVS Bulion \n\n \n","• zastosowanie: Salmonella;\n• granulat;\n• wydajność 41,8 g/l;\n• skład:\n- pepton z mąki sojowej  - 4,5 g/l;\n- chlorek magnezu  bezwodny 13,4 g/l;\n- chlorek sodu - 7,2 g/l;\n- wodorofosforan dipotasu - 0,18 g/l;\n- diwodorofosforan potasu - 1,26 g/l;\n- zieleń malachitowa - 0,036 g/l.",null,null,"op.= \n500g",1,null,{"v":0,"d":"0.00"}]
[null,"48.","RVS Bulion \n\n \n","• zastosowanie: Salmonella;\n• granulat;\n• wydajność 41,8 g/l;\n• skład:\n- pepton z mąki sojowej  - 4,5 g/l;\n- chlorek magnezu x 6 wodny - 28,6 g/l;\n- chlorek sodu - 7,2 g/l;\n- wodorofosforan dipotasu - 0,18 g/l;\n- diwodorofosforan potasu - 1,26 g/l;\n- zieleń malachitowa - 0,036 g/l.",null,null,"op.= \n500g",1,null,{"v":0,"d":"0.00"}]
[null,"49.","Sabouraud Agar z dodatkiem 4% glukozy i z chloramfenikolem","• zastosowanie: podłoże do hodowli, izolacji i identyfikacji grzybów, w tym chorobotwórczych;\n• skład: \n- peptony 10-15 g/l;\n- D(+) glukoza  40,0 g/l;\n- chloramfenikol 0,05 g/l;\n- agar-agar 14,0 - 17,0 g/l;\n",null,null,"op.= \n500g",1,null,{"v":0,"d":"0.00"}]
[null,"50.","SS Agar ","• zastosowanie: Salmonella; \n•  granulat;\n• skład: \n - pepton - 10,0 g/l;\n - laktoza - 10,0 g/l;\n - żółć wołowa suszona - 8,5 g/l;\n - cytrynian sodu - 8,5 g/l;\n - tiosiarczan(VI) sodu - 8,5 g/l;\n - cytrynian amonu i żelaza(III) - 1,0 g/l;\n - zieleń brylantowa - 0,0003 g/l;\n - czerwień neutralna - 0,025 g/l;\n - agar- 12,0 – 15,0 g/l.\n",null,null,"op.= \n500g",3,null,{"v":0,"d":"0.00"}]
[null,"51.","SS Agar ","• zastosowanie: Salmonella; \n•  granulat;\n• skład: \n - pepton - 10,0 g/l;\n - laktoza - 10,0 g/l;\n - żółć wołowa suszona - 8,5 g/l;\n - cytrynian sodu - 8,5 g/l;\n - tiosiarczan(VI) sodu - 8,5 g/l;\n - cytrynian amonu i żelaza(III) - 1,0 g/l;\n - zieleń brylantowa - 0,0003 g/l;\n - czerwień neutralna - 0,025 g/l;\n - agar- 12,0 – 15,0 g/l.\n",null,null,"op.= \n500g",10,null,{"v":0,"d":"0.00"}]
[null,"52.","SS Agar ","• zastosowanie: Salmonella; \n•  granulat;\n• skład: \n - pepton - 10,0 g/l;\n - laktoza - 10,0 g/l;\n - żółć wołowa suszona - 8,5 g/l;\n - cytrynian sodu - 8,5 g/l;\n - tiosiarczan(VI) sodu - 8,5 g/l;\n - cytrynian amonu i żelaza(III) - 1,0 g/l;\n - zieleń brylantowa - 0,0003 g/l;\n - czerwień neutralna - 0,025 g/l;\n - agar- 12,0 – 15,0 g/l.\n",null,null,"op.= \n500g",34,null,{"v":0,"d":"0.00"}]
[null,"53.","Tabletki Ringera","• zastosowanie: do przygotowania izotonicznego roztworu Ringera czterokrotnie rozcieńczonego;",null,null,"op. = 100 tabletek",1,null,{"v":0,"d":"0.00"}]
[null,"54.","Tabletki Ringera","• zastosowanie: do przygotowania izotonicznego roztworu Ringera czterokrotnie rozcieńczonego;",null,null,"op. = 100 tabletek",1,null,{"v":0,"d":"0.00"}]
[null,"55.","TBX","• zastosowanie: oznaczanie liczby B-glukuronidazo-dodatnich Escherichia coli\n•  granulat;\n• skład: \n - enzymatyczny hydrolizat kazeiny (pepton) - 20,0 g/l;\n - sole żółci nr 3 - 1,5 g/l;\n - sól cykloheksyamonowa kwasu 5-bromo-4-chloro-3-indolylo-β-D- glukuronowy (BCIG)  - 0,075g/l;\n - agar- agar 9-18 g/l.\n\n",null,null,"op.= \n500g",1,null,{"v":0,"d":"0.00"}]
[null,"56.","TSA (CASO)                      ","• granulat;                      \n• skład podłoża:\n- pepton z kazeiny - 15,0  g/l,\n- pepton sojowy - 5,0  g/l,\n- chlorek sodu - 5,0  g/l,\n- agar - 12,0 -15,0 g/l.\n",null,null,"op.= \n500g",8,null,{"v":0,"d":"0.00"}]
[null,"57.","TSA (CASO)                      ","• granulat;                      \n• skład podłoża:\n- pepton z kazeiny - 15,0  g/l,\n- pepton sojowy - 5,0  g/l,\n- chlorek sodu - 5,0  g/l,\n- agar - 12,0 -15,0 g/l.\n",null,null,"op.= \n500g",2,null,{"v":0,"d":"0.00"}]
[null,"58.","TTC suplement","Chlorek 2,3,5-trifenylotetrazoliowy (TTC), ≥ 98%\n\nSuplement do poży wek w analizach miktobiologicznych próbek żywności i wody. ",null,null,"op. = 10g ",1,null,{"v":0,"d":"0.00"}]
[null,"59.","VRBD (VRBG) Agar ","• zastosowanie: Enterobacteriaceae;\n• granulat;                                                \n• skład podłoża:\n - pepton z mięsa – 7,0 g/l;\n - ekstrakt drożdżowy – 3,0 g/l;\n - glukoza – 10,0 g/l;\n - chlorek sodu – 5,0 g/l;\n - mieszanina soli żółciowych – 1,5 g/l;\n - czerwień obojętna – 0,03 g/l;\n - fiolet krystaliczny – 0,002 g/l;\n - agar - 12,0 -15,0 g/l.",null,null,"op.= \n500g",1,null,{"v":0,"d":"0.00"}]
[null,"60.","VRBD (VRBG) Agar ","• zastosowanie: Enterobacteriaceae;\n• granulat;                                                \n• skład podłoża:\n - pepton z mięsa – 7,0 g/l;\n - ekstrakt drożdżowy – 3,0 g/l;\n - glukoza – 10,0 g/l;\n - chlorek sodu – 5,0 g/l;\n - mieszanina soli żółciowych – 1,5 g/l;\n - czerwień obojętna – 0,03 g/l;\n - fiolet krystaliczny – 0,002 g/l;\n - agar - 12,0 -15,0 g/l.",null,null,"op.= \n500g",1,null,{"v":0,"d":"0.00"}]
[null,"61.","Zbuforowana woda peptonowa","• zastosowanie: do namnażania bakterii Salmonella;\n• granulat;  \n• skład:\n - enzymatyczny hydrolizat kazeiny - 10 g/l;\n - chlorek sodowy - 5 g/l;\n - wodorofosforan disodowy dodekahydrat - 9 g/l;\n - diwodorofosforan potasowy - 1,5 g/l.\n",null,null,"op.= \n500g",17,null,{"v":0,"d":"0.00"}]
[null,"62.","Zbuforowana woda peptonowa","• zastosowanie: do namnażania bakterii Salmonella;\n• granulat;  \n• skład:\n - enzymatyczny hydrolizat kazeiny - 10 g/l;\n - chlorek sodowy - 5 g/l;\n - wodorofosforan disodowy dodekahydrat - 9 g/l;\n - diwodorofosforan potasowy - 1,5 g/l.\n",null,null,"op.= \n500g",8,null,{"v":0,"d":"0.00"}]
[null,"63.","Zbuforowana woda peptonowa","• zastosowanie: do namnażania bakterii Salmonella;\n• granulat;  \n• skład:\n - enzymatyczny hydrolizat kazeiny - 10 g/l;\n - chlorek sodowy - 5 g/l;\n - wodorofosforan disodowy dodekahydrat - 9 g/l;\n - diwodorofosforan potasowy - 1,5 g/l.",null,null,"op.= \n500g",10,null,{"v":0,"d":"0.00"}]
[null,"Cena oferty (brutto):",{"$nulls":7},{"$f":"SUM(J10:J72)","v":{"v":0,"d":"0.00"}}]
[null,"*","Należy wpisać nazwę producenta oraz numer katalogowy producenta oferowanego produktu. Niepodanie ww. danych będzie skutkować odrzuceniem oferty, chyba że dane te będą jednoznacznie wynikać z innych dokumentów dołączonych do oferty."]
[null,"**","Zawiera podatek od towarów i usług (VAT) wg obowiązującej stawki oraz koszty wszystkich świadczeń niezbędnych do wykonania zamówienia, w szczególności koszty transportu, ubezpieczenia, opakowania (także kaucjonowanego) itp."]
[]
[null,"Wymagania dodatkowe:"]
[]
[null,"1.","Do dostawy wymagany certyfikat jakości lub inny dokument potwierdzający jakość produktu w języku polskim lub angielskim w wersji papierowej lub dostępny w formie elektronicznej w miejscu wskazanym przez Wykonawcę (adres strony www)."]
[null,"2.","Certyfikat lub inny dokument musi zawierać:"]
[null,null,"• nazwę produktu,"]
[null,null,"• numer serii,"]
[null,null,"• nazwę producenta,"]
[null,null,"• data ważności lub okres ważności produktu,"]
[null,null,"• skład (za wyjątkiem poz. 42, 53, 54, 58),"]
[null,null,"• ogólną charakterystykę (za wyjątkiem poz. 42, 53, 54, 58),"]
[null,null,"• charakterystykę mikrobiologiczną (w tym wyniki kontroli mikrobiologicznej szczepami odniesienia z kolekcji WDCM i/lub ATCC- za wyjątkiem poz. 4-9, 16, 17, 20, 22, 23, 37-30, 38-41, 42, 44, 53, 54, 58."]
[null,"3.","Okres ważności: min.18 miesięcy od daty dostawy.W przypadku okresu ważności krótszego niż 18 miesięcy, wymagane jest min. ¾ okresu ważności deklarowanego przez producenta (zapisanego w certyfikacie jakości lub innm dokumencie do danej partii)"]
[null,"4.","Miejsce dostawy:\n","WSSE w Krakowie  ul. Prądnicka 76, 31-202 Kraków\n dla poz. 1, 5, 9-11, 15, 17, 19-22, 24, 26, 27, 29, 31, 33, 36, 42, 44, 45, 49, 52, 54-56, 58, 61.\n"]
[{"$nulls":3},"WSSE Oddział Laboratoryjny w Tarnowie  ul. Mościckiego 10,  33-100 Tarnów -\ndla poz. 2, 4, 8, 13, 23, 28, 30, 32, 35, 39, 41, 43, 48, 51, 53, 60, 63.\n"]
[{"$nulls":3},"WSSE Oddział Laboratoryjny w Wadowicach  ul. Teatralna 2, 34-100 Wadowice - \ndla poz. 3, 6, 7, 12, 14, 16, 18, 25, 34, 37, 38, 40, 46, 47, 50, 57, 59, 62.\n"]

{"sheet":"Część 03","index":3,"n_rows":49,"n_cols":10,"rows_kept":49,"merged":[[0,6,0,9],[2,0,2,9],[3,0,3,9],[4,0,4,9],[6,1,8,1],[6,2,8,2],[6,3,8,3],[6,4,6,5],[6,6,8,6],[6,7,8,7],[6,8,8,8],[6,9,8,9],[7,4,8,4],[7,5,8,5],[24,1,24,8],[25,2,25,9],[26,2,26,9],[30,2,30,9],[40,2,40,5],[45,2,45,7],[48,3,48,7]]}
[null,null,{"$f":"'Część 01'!$C$1","v":"AGZ.272.1.2024"},{"$nulls":3},"Załącznik 1A do SWZ - zmiana z dnia 18.03.2024 r."]
[]
["OPIS PRZEDMIOTU ZAMÓWIENIA - KALKULACJA CENY OFERTY"]
[{"$f":"MID(CELL(\"nazwa_pliku\",A1),FIND(\"]\",CELL(\"nazwa_pliku\",A1),1)+1,100)","v":"Część 03"}]
["Podłoże gotowe "]
[{"$f":"HYPERLINK(\"#'Suma'!A1\",\"wstecz\")","v":"wstecz"}]
[null,"L.p.","Przedmiot zamówienia","Szczegółowy opis","Opis oferowanego produktu",null,"Jednostka miary","Ilość","Cena jednostkowa brutto [zł] **","Wartość brutto [zł] "]
[{"$nulls":4},"Producent*","Nr katalogowy producenta*"]
[]
[null,"1.","Agar Bacillus cereus Medium (MYP) \n\n\n","• Zastosowanie: wykrywanie, izolacja  i określanie liczby Bacillus cereus\n• gotowe podłoże na płytkach Ø 90 mm;\n• skład:\n - Enzymatyczny hydrolizat kazeiny – 10g/l;\n- Ekstrakt mięsny – 1g/l;\n - Mannitol – 10g/l;\n - Chlorek sodu 10g/l;;\n - Czerwień fenolowa – 0,025g/l\n - Polimyksyna B – 100 000IU;\n - Agar – 12-18 g/l;\n - Emulsja żółtka jaja kurzego – 100 ml.\n\n",null,null,"op. = 10 płytek",20,null,{"$f":"H10*I10","v":{"v":0,"d":"0.00"}}]
[null,"2.","Agar Bacillus cereus Medium (MYP) \n\n\n","• Zastosowanie: wykrywanie, izolacja  i określanie liczby Bacillus cereus\n• gotowe podłoże na płytkach Ø 90 mm;\n• skład:\n - Enzymatyczny hydrolizat kazeiny – 10g/l;\n- Ekstrakt mięsny – 1g/l;\n - Mannitol – 10g/l;\n - Chlorek sodu 10g/l;;\n - Czerwień fenolowa – 0,025g/l\n - Polimyksyna B – 100 000IU;\n - Agar – 12-18 g/l;\n - Emulsja żółtka jaja kurzego – 100 ml.\n\n",null,null,"op. = 10 płytek",30,null,{"v":0,"d":"0.00"}]
[null,"3.","Agar Oxford\n\n","zastosowanie: Listeria monocytogenes;\n• gotowe podłoże:\n- agar Columbia - 39,0 g/l;\n- eskulina - 1,0 g/l;\n- cytrynian żelaza (III) i amonu - 0,5 g/l;\n- chlorek litu - 15g/l;\n- cykloheksymid - 0,4 g/l;\n- siarczan kolistyny - 0,02 g/l;\n- chlorowodorek akryflawiny - 0,005 g/l;\n- cefotetan - 0,002 g/l;\n- fosfomycyna - 0,01 g/l.",null,null,"op. = 10 płytek",3,null,{"v":0,"d":"0.00"}]
[null,"4.","Agar Oxford\n\n\n","zastosowanie: Listeria monocytogenes;\n• gotowe podłoże:\n- agar Columbia - 39,0 -44,0 g/l;\n- eskulina - 1,0 g/l;\n- cytrynian żelaza (III) i amonu - 0,5 g/l;\n- chlorek litu - 15g/l;\n- cykloheksymid - 0,4 g/l;\n- siarczan kolistyny - 0,02 g/l;\n- chlorowodorek akryflawiny - 0,005 g/l;\n- cefotetan - 0,002 g/l;\n- fosfomycyna - 0,01 g/l.",null,null,"op. = 10 płytek",12,null,{"v":0,"d":"0.00"}]
[null,"5.","Agar CCDA","• zastosowanie:Campylobacter spp.;\n• gotowe podłoże:\n  -ekstrakt mięsny - 10,0 g/l;\n  - enzymatyczny hydrolizat tkanek zwierzęcych - 10,0 g/l;\n  - enzymatyczny hydrolizat z kazeiny - 3,0 g/l;\n  - aktywowany węgiel drzewny - 4,0 g/l;\n  - chlorek sodu - 5,0 g/l;\n  - dezoksycholan sodu - 1,0 g/l;\n  - hydrat siarczanu żelaza (II)- 0,25 g/l;\n  - pirogronian sodu - 0,25 g/l;\n   -sól sodowa cefoperazonu - 0,032 g/l;\n - amfoterycyna B - 0,01 g/l;\n - agar - 8,0-18,0 g/l; \n• kolor czarny, nieprzeźroczysty.",null,null,"op. = 10 płytek",10,null,{"v":0,"d":"0.00"}]
[null,"6.","Agar Columbia z krwią","• gotowe podłoże:\n    - enzymatyczny hydrolizat takanek zwierzęcych (peton) - 23,0 g/l;\n  - skrobia rozpuszczalna - 1,0 g/l;\n   - chlorek sodu - 5,0 g/l;\n   - krew owcza lub końska - 50 ml/l;\n   - agar - 8,0-18,0 g/l.\n\n",null,null,"op. = 10 płytek",39,null,{"v":0,"d":"0.00"}]
[null,"7.","Bulion Frasera \n\n","• zastosowanie: Listeria monocytogenes;\n• gotowe podłoże:\n  - pepton mięsny - 5,0 g/l;\n  - trypton - 5,0 g/l;\n  - ekstrakt mięsny - 5,0 g/l;\n  - ekstrakt drożdżowy - 5,0 g/l;\n  - chlorek sodu - 20,0 g/l;\n  - 2∙hydrat wodorofosforanu disodu - 12,0 g/l;\n  - diwodorofosforan potasu - 1,35 g/l;\n  - eskulina - 1,0 g/l;\n  - chlorek litu - 3,0 g/l;\n  - sól sodowa kwasu nalidiksowego - 0,02 g/l;\n  - chlorowodorek akryflawiny - 0,025 g/l;\n  - cytrynian żelaza (III) i amonu - 0,5 g/l.\n\n",null,null,"op. = fiolka 10ml",70,null,{"$f":"H16*I16","v":{"v":0,"d":"0.00"}}]
[null,"8.","Bulion Frasera \n\n","• zastosowanie: Listeria monocytogenes;\n• gotowe podłoże:\n  - pepton mięsny - 5,0 g/l;\n  - trypton - 5,0 g/l;\n  - ekstrakt mięsny - 5,0 g/l;\n  - ekstrakt drożdżowy - 5,0 g/l;\n  - chlorek sodu - 20,0 g/l;\n  - 2∙hydrat wodorofosforanu disodu - 12,0 g/l;\n  - diwodorofosforan potasu - 1,35 g/l;\n  - eskulina - 1,0 g/l;\n  - chlorek litu - 3,0 g/l;\n  - sól sodowa kwasu nalidiksowego - 0,02 g/l;\n  - chlorowodorek akryflawiny - 0,025 g/l;\n  - cytrynian żelaza (III) i amonu - 0,5 g/l.\n\n",null,null,"op. = fiolka 10ml",15,null,{"v":0,"d":"0.00"}]
[null,"9.","Bulion pół-Frasera \n\n","• zastosowanie: Listeria monocytogenes;\n• gotowe podłoże:\n  - pepton mięsny - 5,0 g/l;\n  - trypton - 5,0 g/l;\n  - ekstrakt wołowy - 5,0 g/l;\n  - ekstrakt drożdżowy - 5,0 g/l;\n  - chlorek sodu - 20,0 g/l;\n  - 2∙hydrat wodorofosforanu disodu - 12,0 g/l;\n  - wodorofosforan dipotasu - 1,35 g/l;\n  - eskulina - 1,0 g/l;\n  - chlorek litu - 3,0 g/l;\n  - sól sodowa kwasu nalidiksowego - 0,01 g/l;\n  - chlorowodorek akryflawiny - 0,0125 g/l.\n - cytrynian żelaza (III) i amonu - 0,5 g/l;\n",null,null,"butelka =  225ml",70,null,{"v":0,"d":"0.00"}]
[null,"10.","Bulion pół-Frasera \n\n","• zastosowanie: Listeria monocytogenes;\n• gotowe podłoże:\n  - pepton mięsny - 5,0 g/l;\n  - trypton - 5,0 g/l;\n  - ekstrakt wołowy - 5,0 g/l;\n  - ekstrakt drożdżowy - 5,0 g/l;\n  - chlorek sodu - 20,0 g/l;\n  - 2∙hydrat wodorofosforanu disodu - 12,0 g/l;\n  - wodorofosforan dipotasu - 1,35 g/l;\n  - eskulina - 1,0 g/l;\n  - chlorek litu - 3,0 g/l;\n  - sól sodowa kwasu nalidiksowego - 0,01 g/l;\n  - chlorowodorek akryflawiny - 0,0125 g/l.\n - cytrynian żelaza (III) i amonu - 0,5 g/l.\n",null,null,"butelka =  225ml",15,null,{"v":0,"d":"0.00"}]
[null,"11.","Agar BLOOD NR 2 \n+ 5 % KB  \n","• zastosowanie: Listeria monocytogenes; Bacillus cereus, \n• gotowe podłoże,                                     \n• skład podłoża:\n - Pepton Proteose 15,00 g/l;\n - Ekstrakt wątrobowy 2,50 g/l;\n - Ekstrakt drożdżowy 5,00 g/l;\n  -Chlorek sodu 5,00 g/l;\n - Agar 12,00-18,00 g/l;                                        \n - jałowa odwłókniona krew barania 50 ml/l.                                                \n  \n\n",null,null,"op. = 10 płytek",8,null,{"v":0,"d":"0.00"}]
[null,"12.","Agar BLOOD NR 2 \n+ 5 % KB  \n","• zastosowanie: Listeria monocytogenes; Bacillus cereus, \n• gotowe podłoże,                                     \n• skład podłoża:\n - Pepton Proteose 15,00 g/l;\n - Ekstrakt wątrobowy 2,50 g/l;\n - Ekstrakt drożdżowy 5,00 g/l;\n  -Chlorek sodu 5,00 g/l;\n - Agar 12,00-18,00 g/l;                                        \n - jałowa odwłókniona krew barania 50 ml/l.                                                \n  \n\n",null,null,"op. = 10 płytek",10,null,{"v":0,"d":"0.00"}]
[null,"13.","Agar BLOOD NR 2 \n+ 5 % KB  \n","• zastosowanie: Listeria monocytogenes; Bacillus cereus, \n• gotowe podłoże,                                     \n• skład podłoża:\n - Pepton Proteose 15,00 g/l;\n - Ekstrakt wątrobowy 2,50 g/l;\n - Ekstrakt drożdżowy 5,00 g/l;\n  -Chlorek sodu 5,00 g/l;\n - Agar 12,00-18,00 g/l;                                        \n - jałowa odwłókniona krew barania 50 ml/l.                                                \n  \n\n",null,null,"op. = 10 płytek",8,null,{"v":0,"d":"0.00"}]
[null,"14.","TSC Agar","• Zastosowanie: agar do izolacji i określania liczby form wegetatywnych i przetrwalników Clostridium perfringens;\n• skład podłoża:\n - enzymatyczny hydrolizat kazeiny 15,0 g/l;\n - enzymatyczny hydrolizat soi 5,0g/l;\n - ekstrakt drożdżowy 5,0 g/l;                                                 \n - disiarczan (IV) sodowy 1,0 g/l;                                        \n - cytrynian amonu i żelaza (III) 1,0 g/l;                                                                                                                                                                 \n - agar agar 9,0 -18,0 g/l,\n - D-cykloseryna 0,4 g/l.\n              ",null,null,"op. = \n100ml",30,null,{"v":0,"d":"0.00"}]
[null,"15.","Agar CN \n","• zastosowanie: Pseudomonas aeruginosa;\n• gotowe podłoże:\n  - pepton żelatynowy - 16,0 g/l;\n  - hydrolizat kazeiny - 10,0 g/l;\n  - siarczan potasu (bezwodny) - 10,0 g/l;\n  - chlorek magnezu (bezwodny) - 1,4 g/l;\n  - glicerol - 10,0 ml;\n  - cetrymide - 0,2 g/l;\n  - kwas nalidyksowy - 0,015 g/l;\n  - agar-agar - 11,0 - 18,0 g/l.\n\n",null,null,"op.= 10 płytek",8,null,{"v":0,"d":"0.00"}]
[null,"Cena oferty (brutto):",{"$nulls":7},{"$f":"SUM(J10:J24)","v":{"v":0,"d":"0.00"}}]
[null,"*","Należy wpisać nazwę producenta oraz numer katalogowy producenta oferowanego produktu. Niepodanie ww. danych będzie skutkować odrzuceniem oferty, chyba że dane te będą jednoznacznie wynikać z innych dokumentów dołączonych do oferty."]
[null,"**","Zawiera podatek od towarów i usług (VAT) wg obowiązującej stawki oraz koszty wszystkich świadczeń niezbędnych do wykonania zamówienia, w szczególności koszty transportu, ubezpieczenia, opakowania (także kaucjonowanego) itp."]
[]
[null,"Wymagania dodatkowe:"]
[]
[null,"1.","Do dostawy wymagany certyfikat jakości lub inny dokument potwierdzający spełnienie wymagań w języku polskim lub angielskim w wersji papierowej lub dostępny w formie elektronicznej w miejscu wskazanym przez Wykonawcę (adres strony www). Wymienione dokumenty nie muszą potwierdzać zastosowania."]
[null,"2.","Certyfikat lub inny dokument musi zawierać:"]
[null,null,"• nazwę produktu,"]
[null,null,"• numer serii,"]
[null,null,"• nazwę producenta,"]
[null,null,"• data ważności lub okres ważności produktu,"]
[null,null,"• skład podłoża,"]
[null,null,"• ogólną charakterystykę podłoża,"]
[null,null,"• charakterystykę mikrobiologiczną (w tym wyniki kontroli mikrobiologicznej szczepami odniesienia z kolekcji WDCM i/lub ATCC)."]
[null,"3.","Dla poz. 1-2 okres ważności:  min. 8 tygodni od daty dostawy"]
[null,"4.","Dla poz. 3-5 okres ważności: min. 11 tygodni  od daty dostawy"]
[null,"5.","Dla poz. 6, 11-13 okres ważności min. 5 tygodni od daty dostawy"]
[null,"6.","Dla poz. 14 okres ważności: min. 10  miesięcy od daty dostawy"]
[null,"7.","Dla poz. 7-10 okres ważności: min. 5 miesięcy od daty dostawy"]
[null,"8.","Dla poz. 15 okres ważności: min. 11 tygodni od daty dostawy"]
[null,"9.","Dla pozostałych pozycji okres ważności: min. 6 miesięcy od daty dostawy"]
[{"$nulls":3},"WSSE w Krakowie  ul. Prądnicka 76, 31-202 Kraków - dla poz. 1, 4-7, 9, 11."]
[{"$nulls":3},"WSSE Oddział Laboratoryjny w Tarnowie  ul. Mościckiego 10,  33-100 Tarnów - dla poz. 13"]
[{"$nulls":3},"WSSE Oddział Laboratoryjny w Wadowicach  ul. Teatralna 2, 34-100 Wadowice - dla poz. 2, 3, 8, 10, 12, 14, 15\n"]

{"sheet":"Część 04","index":4,"n_rows":29,"n_cols":10,"rows_kept":29,"merged":[[0,6,0,9],[2,0,2,9],[3,0,3,9],[4,0,4,9],[6,1,8,1],[6,2,8,2],[6,3,8,3],[6,4,6,5],[6,6,8,6],[6,7,8,7],[6,8,8,8],[6,9,8,9],[7,4,8,4],[7,5,8,5],[13,1,13,8],[14,2,14,9],[15,2,15,9],[19,2,19,9]]}
[null,null,{"$f":"'Część 01'!$C$1","v":"AGZ.272.1.2024"},{"$nulls":3},"Załącznik 1A do SWZ"]
[]
["OPIS PRZEDMIOTU ZAMÓWIENIA - KALKULACJA CENY OFERTY"]
[{"$f":"MID(CELL(\"nazwa_pliku\",A1),FIND(\"]\",CELL(\"nazwa_pliku\",A1),1)+1,100)","v":"Część 04"}]
["Podłoża do diagnostyki medycznej - część 1"]
[{"$f":"HYPERLINK(\"#'Suma'!A1\",\"wstecz\")","v":"wstecz"}]
[null,"L.p.","Przedmiot zamówienia","Szczegółowy opis","Opis oferowanego produktu",null,"Jednostka miary***","Ilość***","Cena jednostkowa brutto [zł] **","Wartość brutto [zł] "]
[{"$nulls":4},"Producent*","Nr katalogowy producenta*"]
[]
[null,"1.","Agar czekoladowy \n\n","Podłoża wzbogacone do przechowywania szczepów wzorcowych i klinicznych o wysokich wymaganiach odżywczych szczególnie dla takich bakterii jak: Neisseria sp., Streptococcus pneumoniae i Haemophilus sp.;\n• specyfikacja:\n  - podłoże na płytce (ø90 mm)\n• skład podłoża: \n  - peptpone special  - 15,0 g/l;                                                                      \n  - skrobia kukurydziana - 1,0 g/l;                                                                  \n  - chlorek sodu - 1,5 g/l;                                                                        \n  - wodorofosforan dipotasu 4,0 g/l;                                                                      \n  - diwodorofosforan potasu 1,0 g/l;                                                                   \n  - glukoza 2,0 g/l;                                                                                \n  - hemoglobina 10,0 g/l;                                                                          \n  - witamina B12 0,0002 g/l;                                                                   \n  - L-glutamina 0,2 g/l;                                                                              \n  - adenina 0,02 g/l;                                                                                  \n  - guanina 0,0006 g/l;                                                                                 \n  - kwas p-aminobenzoesowy 0,00026 g/l;                                                                         \n  - L-cystyna 0,022 g/l;                                                       \n  - NAD (koenzym 1) 0,005 g/l;                                                                                      \n  - karboksylza 0,002 g/l;                                                                             \n  - azotan żelaza 0,0004 g/l;                                                                               \n  - tiamina 0,00006 g/l;                                                                            \n  - cysteina 0,518 g/l;                                                                               \n  - agar 10,0 - 15,0 g/l.",null,null,"op.=\n10 płytek",1,null,{"$f":"H10*I10","v":{"v":0,"d":"0.00"}}]
[null,"2.","Pseudomonas agar CN","Podłoże przeznaczone do wybiórczej izolacji Pseudomonas aeruginosa.;\n• specyfikacja:\n- podłoże na płytce (ø90 mm);\n• skład podłoża: \n- agar 11,5 g/l;\n- pepton żelatynowy 16,0 g/l\n- hydrolizat kazeiny 10,0 g/l;\n- chlorek magnezu bezwodny 1,4 g/l; \n- siarczan potasu bezwodny 10,0 g/l;\n- glicerol 10 ml/l;\n- sól sodowa kwasu nalidyksowego 0,015 g/l;\n- cetrymid 0,2 g/l;",null,null,"op.=\n10 płytek",1,null,{"$f":"H11*I11","v":{"v":0,"d":"0.00"}}]
[null,"3.","AGAR Z ESKULINĄ,SOLAMI ŻÓŁCI I AZYDKIEM","Wybiórcza izolacja i różnicowanie paciorkowców z grupy D.\n•speyfikacja:                                                                     - podłoże na płytce (ø90 mm),\n• Skład podłoża:                                                                             \n - Pepton - 3,0 g/l; \n - Typton - 20,0 g/l; \n - Ekstrakt drożdżowy \t- 5,0 g/l; \n - Żółć wołowa - 20,0 g/l; \n - Chlorek sodu - 5,0 g/l; \n - Cytrynian amonu i żelaza (III) - 0,5 g/l; \n - Eskulina - 1,0 g/l; \n - Azydek sodu - 0,55 g/l; \n - Agar - 8,0 - 12,0 g/l; \n - cytrynian sodu - 1,0 g/l. \n",null,null,"op.=\n10 płytek",1,null,{"$f":"H12*I12","v":{"v":0,"d":"0.00"}}]
[null,"4.","Podłoże chromogenne UTI = Brilliance UTI","Podłoże chromogenne do wstępnej identyfikacji mikroorganizmów poprzez charakterystyczne reakcje barwne kolonii\n• speyfikacja:                                                                      \n- podłoże na płytce (ø90 mm), kolor kości słoniowej, nieprzezroczyste\n• Skład:\n - Pepton 15,00 g/l; \n - Mieszanka chromogenna 26,3 g/l; \n - surowica końska 5 g/l; \n - Agar 12,0-17,0 g/l.",null,null,"op.=\n10 płytek",10,null,{"$f":"H13*I13","v":{"v":0,"d":"0.00"}}]
[null,"Cena oferty (brutto):",{"$nulls":7},{"$f":"SUM(J10:J13)","v":{"v":0,"d":"0.00"}}]
[null,"*","Należy wpisać nazwę producenta oraz numer katalogowy producenta oferowanego produktu. Niepodanie ww. danych będzie skutkować odrzuceniem oferty, chyba że dane te będą jednoznacznie wynikać z innych dokumentów dołączonych do oferty."]
[null,"**","Zawiera podatek od towarów i usług (VAT) wg obowiązującej stawki oraz koszty wszystkich świadczeń niezbędnych do wykonania zamówienia, w szczególności koszty transportu, ubezpieczenia, opakowania (także kaucjonowanego) itp."]
[]
[null,"Wymagania dodatkowe:"]
[]
[null,"1.","Do dostawy wymagany certyfikat jakości lub inny dokument potwierdzający jakość produktu w języku polskim lub angielskim w wersji papierowej lub dostępny w formie elektronicznej w miejscu wskazanym przez wykonawcę (adres strony www)."]
[null,"2.","Certyfikat lub inny dokument musi zawierać:"]
[null,null,"• nazwę produktu,"]
[null,null,"• numer serii,"]
[null,null,"• nazwę producenta,"]
[null,null,"• data ważności lub okres ważności produktu,"]
[null,null,"• skład podłoża,"]
[null,null,"• ogólną charakterystykę podłoża (w tym wyniki kontroli mikrobiologicznej szczepami odniesienia z kolekcji WDCM i/lub ATCC)"]
[null,"3.","Okres ważności: 11 tygodnie od daty dostawy"]
[null,"4.","Miejsce dostawy:\n","WSSE Kraków  ul. Prądnicka 76, 31-202 Kraków \n"]

{"sheet":"Część 05","index":5,"n_rows":63,"n_cols":10,"rows_kept":63,"merged":[[0,6,0,9],[2,0,2,9],[3,0,3,9],[4,0,4,9],[6,1,8,1],[6,2,8,2],[6,3,8,3],[6,4,6,5],[6,6,8,6],[6,7,8,7],[6,8,8,8],[6,9,8,9],[7,4,8,4],[7,5,8,5],[44,1,44,8],[45,2,45,9],[46,2,46,9],[50,2,50,9]]}
[null,null,{"$f":"'Część 01'!$C$1","v":"AGZ.272.1.2024"},{"$nulls":3},"Załącznik 1A do SWZ"]
[]
["OPIS PRZEDMIOTU ZAMÓWIENIA - KALKULACJA CENY OFERTY"]
[{"$f":"MID(CELL(\"nazwa_pliku\",A1),FIND(\"]\",CELL(\"nazwa_pliku\",A1),1)+1,100)","v":"Część 05"}]
["Podłoża i dodatki podłóż "]
[{"$f":"HYPERLINK(\"#'Suma'!A1\",\"wstecz\")","v":"wstecz"}]
[null,"L.p.","Przedmiot zamówienia","Szczegółowy opis","Opis oferowanego produktu",null,"Jednostka miary","Ilość","Cena jednostkowa brutto [zł] **","Wartość brutto [zł] "]
[{"$nulls":4},"Producent*","Nr katalogowy producenta*"]
[]
[null,"1.","Agar bakteriologiczny  \n","• zastosowanie: składnik pożywek mikrobiologicznych,\n• proszek barwy biało-beżowej, \n• moc żelowania 800-950 g/cm.",null,null,"op. =\n500g",3,null,{"$f":"H10*I10","v":{"v":0,"d":"0.00"}}]
[null,"2.","Agar miękki","• zastosowanie:  namnażanie mikroorganizmów Salmonella przy wykrywaniu rzęskowych antygenów H\n• skład: \n- Ekstrakt wołowy - 3 g/l;\n- Pepton  - 5 g/l;\n- Agar - 5-7 g/l;\n",null,null,"op.=\n100g",1,null,{"v":0,"d":"0.00"}]
[null,"3.","Agar półpłynny","• zastosowanie: podłoże do wykrywania ruchu u bakterii\n• skład: \n  - pepton 10,0 g/l, \n  - ekstrakt mięsny (wołowy) 3,0 g/l, \n  - chlorek sodu 5,0 g/l, \n  - agar 2-4 g/l ",null,null,"op. =\n250g",1,null,{"v":0,"d":"0.00"}]
[null,"4.","Agar wzbogacony\n\n","• zastosowanie: do hodowli drobnoustrojów;\n• skład:\n- pepton - 4 g/l;\n- ekstrakt mięsny - 0,40 g/l;\n- hydrolizat kazeiny - 5,4 g/l;\n- chlorek sodu - 3,5 g/l;                             \n- ekstrakt drożdżowy - 1,7g/l;\n- agar - 12,0 - 15,0 g/l.\n",null,null,"op. = \n500g",2,null,{"v":0,"d":"0.00"}]
[null,"5.","Bulion wzbogacony","• zastosowanie: do hodowli drobnoustrojów;\n• skład:\n- pepton - 4 g/l;\n- ekstrakt mięsny - 0,40 g/l;\n- hydrolizat kazeiny - 5,4 g/l;\n- chlorek sodu - 3,5 g/l;\n- ekstrakt drożdzowy - 1,7 g/l.",null,null,"op. = \n500g",2,null,{"v":0,"d":"0.00"}]
[null,"6.","Bulion wzbogacony","• zastosowanie: do hodowli drobnoustrojów;\n• skład:\n- pepton - 4 g/l;\n- ekstrakt mięsny - 0,40 g/l;\n- hydrolizat kazeiny - 5,4 g/l;\n- chlorek sodu - 3,5 g/l;\n- ekstrakt drożdzowy - 1,7 g/l.",null,null,"op. = \n250g",1,null,{"v":0,"d":"0.00"}]
[null,"7.","Bulion kazeinowo-sojowy","• zastosowanie: hodowla i namnażanie mikroorganizmów\n• skład: \n- Pepton K - 17 g/l;\n- Pepton SP - 3 g/l;\n- Chlorek sodu - 5 g/l;\n- Wodorofosforan dipotasu - 2,5 g/l;\n- Glukoza x H2O - 2,5 g/l;\n",null,null,"op.=\n100g",1,null,{"v":0,"d":"0.00"}]
[null,"8.","Bulion z acetamidem","• zastosowanie: wykrywanie u Pseudomonas zdolności wytwarzania amoniaku z acetamidu;\n• skład: \n- dwuwodorofosforan potasu - 1 g/l;\n- siarczan magnezu bezwodny - 0,20 g/l;\n- acetamind - 2 g/l;\n- chlorek sodu - 0,2 g/l;\n- molibdenian sodu 2 hydrat - 0,005 g/l;\n- siarczan żelaza 7 hydrat - 0,0005 g/l.\n",null,null,"op.=\n500g",1,null,{"v":0,"d":"0.00"}]
[null,"9.","Bulion z acetamidem","• zastosowanie: wykrywanie u Pseudomonas zdolności wytwarzania amoniaku z acetamidu;\n• skład: \n- dwuwodorofosforan potasu - 1 g/l;\n- siarczan magnezu bezwodny - 0,20 g/l;\n- acetamind - 2 g/l;\n- chlorek sodu - 0,2 g/l;\n- molibdenian sodu 2 hydrat - 0,005 g/l;\n- siarczan żelaza 7 hydrat - 0,0005 g/l.\n",null,null,"op.=\n100g",1,null,{"v":0,"d":"0.00"}]
[null,"10.","Bulion z acetamidem","• zastosowanie: wykrywanie u Pseudomonas zdolności wytwarzania amoniaku z acetamidu;\n• skład: \n- dwuwodorofosforan potasu - 1 g/l;\n- siarczan magnezu bezwodny - 0,20 g/l;\n- acetamind - 2 g/l;\n- chlorek sodu - 0,2 g/l;\n- molibdenian sodu 2 hydrat - 0,005 g/l;\n- siarczan żelaza 7 hydrat - 0,0005 g/l.\n",null,null,"op.=\n100g",1,null,{"v":0,"d":"0.00"}]
[null,"11.","Gliceryna ","• zastosowanie: do podłoża agar z cetrymidem , do Pseudomonas aeruginosa \n• C₃H₈O₃\n• czystość czda;\n• czystość min.: 85 %.",null,null,"op. =\n500 ml",1,null,{"v":0,"d":"0.00"}]
[null,"12.","Gliceryna ","• zastosowanie: do podłoża agar z cetrymidem , do Pseudomonas aeruginosa \n• C₃H₈O₃\n• czystość czda;\n• czystość min.: 85 %.",null,null,"op. =\n500 ml",2,null,{"v":0,"d":"0.00"}]
[null,"13.","King B podłoże","• zastosowanie: do wykrywania , różnicowania i oznaczania liczby bakterii fluoryzujących z rodzaju Pseudomonas\n• skład podłoża: \n- pepton K - 20,00 g/l, \n- wodorofosforan dipotasu,\n- 1,50 g/l, \n- siarczan magnezu x 7 H2O - 1,5g/l, \n- agar - 14-16 g/l .",null,null,"op. =\n100g",1,null,{"v":0,"d":"0.00"}]
[null,"14.","Mleko odtłuszczone w proszku (dodatek do pożywek)\n\n\n","• zastosowanie : dodatek do podłoży mikrobiologicznych;                                       \n• proszek;  biały , lekko kremowy                                                \n•  tłuszcz: max. 1%; \n",null,null,"op.= \n100g",5,null,{"v":0,"d":"0.00"}]
[null,"15.","Odczynnik Kovacs'a","• zastosowanie: do określenia zdolości bakterii do produkcji indolu na drodze dezaminacji tryptofanu;\n• postać odczynnika: płyn;\n• skład odczynnika:\n- 4-dimetyloaminobenzaldehyd 5,0 g/l;\n- kwas solny 25 ml/l;\n- alkohol amylowy 75ml/l.",null,null,"op. =\n100 ml",41,null,{"v":0,"d":"0.00"}]
[null,"16.","Odczynnik Kovacs'a","• zastosowanie: do określenia zdolości bakterii do produkcji indolu na drodze dezaminacji tryptofanu;\n• postać odczynnika: płyn;\n• skład odczynnika:\n- 4-dimetyloaminobenzaldehyd 5,0 g/l;\n- kwas solny 25 ml/l;\n- alkohol amylowy 75ml/l.",null,null,"op. = \n100 ml",1,null,{"v":0,"d":"0.00"}]
[null,"17.","Pankreatynowy hydrolizat kazeiny (trypton)","• zastosowanie: do przygotowania pożywek w hodowli wymagających drobnoustrojów\n• skład:\n - azot całkowity 10-13%,                             \n  - azot aminowy 3-5%,                                 \n  - tryptofan 1-1,2g/100g.",null,null,"op. = \n500g",2,null,{"v":0,"d":"0.00"}]
[null,"18.","Pepton proteose ","• zastosowanie: składnik pozywek mikrobiologicznych,                                                \n• proszek barwy janożółtej\n• pH 2% r-ru 7,0±0,5",null,null,"op.= \n100g",1,null,{"v":0,"d":"0.00"}]
[null,"19.","Płyn do rozcieńczeń \n(Roztwór fizjologiczny z peptonem)","• zastosowanie: \ndo rozcieńczeń \n• skład podłoża: \n- pepton K -1,00 g/l;\n - chlorek sodu 8,50 g/l.",null,null,"op. =\n250g",3,null,{"v":0,"d":"0.00"}]
[null,"20.","Podłoże Hektoena","• zastosowanie: wykrywanie  i izolowanie drobnoustrojów Enterobacteriaceae\n• skład podłoża:\n - pepton - 12,0 g/l;\n - ekstrakt drożdżowy - 3,0 g/l; \n - laktoza - 12,0 g/l;\n - sacharoza - 12,0 /l;\n - salicyna - 2,0 g/l;\n - chlorek sodu - 5,0 g/l;\n - żółć wołowa - 9,0 g/l;\n - tiosiarczan sodu - 3,20 g/l;\n - cytrynian amonu żelaza (III) – 1,50 g/l; \n - błękit bromotymolowy - 0,065 g/l; \n - fuksyna kwaśna - 0,10 g/l;\n - agar - 14,0 - 16,0 g/l.",null,null,"op. = \n500g",6,null,{"v":0,"d":"0.00"}]
[null,"21.","Podłoże King B","• zastosowanie: do  wykrywania , różnicowania i oznaczania liczby bakterii fluoryzujących z rodzaju Pseudomonas\n• skład podłoża:                                                \n - pepton K - 20,00 g/l,\n - wodorofosforan dipotasu - 1,50 g/l, \n - siarczan magnezu x 7 H2O - 1,5g/l,\n - agar - 14-16 g/l .\n",null,null,"op. = \n100g",1,null,{"v":0,"d":"0.00"}]
[null,"22.","Podłoże z mocznikiem wg Christensena\n","• postać: proszek\n• skład podłoża:\n - Pepton - 1,0 g/l, \n- Glukoza - 1,0 g/l, \n- Chlorek sodu - 5,0 g/l, \n- Dwuwodorofosforan potasu - 2,0 g/l, \n- Czerwień fenolowa - 0,012 g/l,\n - Agar - 13,0-16,0 g/l, \n- Mocznik - 20,0 g/l,.",null,null,"op. =\n250g",1,null,{"v":0,"d":"0.00"}]
[null,"23.","Podłoże z mocznikiem wg. Christensena w modyfikacji Hormaeche i Munilla ","• zastosowanie: hodowla oraz różnicowanie pałeczek z rodziny Enterobacteriaceae i Proteus,\n•  skład podłoża:\n - pepton – 1,0 g/l; \n - chlorek sodu – 5,0 g/l; \n - diwodorofosforan potasu – 2,0 g/l;\n - mocznik – 20,0 g/l; \n - czerwień krezolowa – 0,0096 g/l.\n",null,null,"op.= \n100g",1,null,{"v":0,"d":"0.00"}]
[null,"24.","Podłoże z seleninem sodu SF ","• zastosowanie: selektywne namnażanie Salmonella sp.z kału, moczu i produktów spożywczych;\n• skład podłoża:\n - pepton – 5,0 g/l;\n - laktoza – 4,0 g/l; \n - wodorofosforan disodu – 10,0 g/l; \n - wodoroselenin sodu – 4,0 g/l.\n\n",null,null,"op.= \n500g",7,null,{"v":0,"d":"0.00"}]
[null,"25.","Pseudomonas Agar P  \n\n","• proszek                                                                                     \n• skład: \n- trzustkowy hydrolizat żelatyny 20,0  g/l;\n- bezwodny chlorek magnezu 1,4  g/l; \n- bezwodny siarczan potasu 10,0  g/l;\n- agar 13,0-18,0  g/l; \n- glicerol 10,0 ml.\n",null,null,"op. =\n500g",1,null,{"v":0,"d":"0.00"}]
[null,"26.","TSI Agar (agar trójcukrowy z żelazem)","• proszek;\n• skład podłoża: \n- ekstrakt mięsny - 3,0 g/l, \n- ekstrakt drożdżowy - 3,0 g/l, \n- pepton - 20,0 g/l, \n- chlorek sodu - 5,0 g/l, \n- laktoza - 10,0 g/l, \n- sacharoza - 10,0 g/l, \n- glukoza - 1,0 g/l, \n- cytrynian żelazowy - 0,3 g/l, \n- tiosiarczan sodu - 0,3 g/l, \n- czerwień fenolowa - 0,024 g/l, \n- agar - 13,0 - 16,0 g/l.",null,null,"op. = \n250g",1,null,{"v":0,"d":"0.00"}]
[null,"27.","Wilson-Blair agar\n(Agar z siarczynem bizmutu)\n\n","• zastosowanie: hodowla - pałeczki Salmonella spp.;\n• produkt sypki;\n• wydajność: 50g/1000ml;\n• skład:\n- pepton  - 10,0 g/l;\n- ekstrakt mięsny - 5,0 g/l;\n-  Glukoza - 5,0 g/l;\n- Wodorofosforan dwusodowy - 4,0 g/l;\n- siarczan żelaza   - 0,3 g/l;\n- siarczyn bizmutu - wskaźnik - 8 g/l;\n- zieleń brylantowa -  0,025 g/l,\n- agar-agar - 18 - 20 g/l.\n",null,null,"op. = \n500g",27,null,{"v":0,"d":"0.00"}]
[null,"28.","Woda peptonowa z tryptofanem\n","• zastosowanie: hodowla przy różnicowaniu bakterii z grupy coli - test na wytwarzanie indolu                                                                      • skład podłoże: \n  - Pepton K - 10,0  g/l;\n  - Chlorek sodu - 5,0  g/l;\n  - DL-tryptofan - 1,0  g/l.                                                 \n",null,null,"op.=\n250g",1,null,{"v":0,"d":"0.00"}]
[null,"29.","Woda peptonowa 10%","• proszek\n• skład:\n  - pepton 100,0 g/l, \n  - azotan potasu 1,0 g/l, \n  - chlorek sodu 50,0 g/l, \n  - węglan sodu 0,74 g/l.",null,null,"op.=\n500g",1,null,{"v":0,"d":"0.00"}]
[null,"30.","Agar Z ksylozą i lizyną (XLD)","•zastosowanie: Salmonella spp;        \n•sucha pożywka, proszek\n• skład podłoża:\n- ekstrakt drożdżowy - 3,0 g/l,\n- chlorek sodowy - 5,0 g/l,\n- D ksyloza - 3,75 g/l,\n- laktoza - 7,5 g/l,\n- sacharoza - 7,5 g/l,\n- chlorowodorek L- lizyny - 5,0 g/l,\n- dezoksycholan sodowy - 1 g/l\n- tiosiarczan sodowy - 6,8 g/l, \n- cytrynian amonu i żelaza (III) - 0,8 g/l,\n- czerwień fenolowa - 0,08 g/l, \n- agar - 12,0 g – 15,0 g/l.        \n",null,null,"op.= \n500g",3]
[null,"31.","Agar Z ksylozą i lizyną (XLD)","•zastosowanie: Salmonella spp;        \n•sucha pożywka, proszek\n• skład podłoża:\n- ekstrakt drożdżowy - 3,0 g/l,\n- chlorek sodowy - 5,0 g/l,\n- D ksyloza - 3,75 g/l,\n- laktoza - 7,5 g/l,\n- sacharoza - 7,5 g/l,\n- chlorowodorek L- lizyny - 5,0 g/l,\n- dezoksycholan sodowy - 1 g/l\n- tiosiarczan sodowy - 6,8 g/l, \n- cytrynian amonu i żelaza (III) - 0,8 g/l,\n- czerwień fenolowa - 0,08 g/l, \n- agar - 12,0 g – 15,0 g/l.        \n",null,null,"op.= \n500g",2]
[null,"32.","Agar Z ksylozą i lizyną (XLD)","•zastosowanie: Salmonella spp;        \n•sucha pożywka, proszek\n• skład podłoża:\n- ekstrakt drożdżowy - 3,0 g/l,\n- chlorek sodowy - 5,0 g/l,\n- D ksyloza - 3,75 g/l,\n- laktoza - 7,5 g/l,\n- sacharoza - 7,5 g/l,\n- chlorowodorek L- lizyny - 5,0 g/l,\n- dezoksycholan sodowy - 1 g/l\n- tiosiarczan sodowy - 6,8 g/l, \n- cytrynian amonu i żelaza (III) - 0,8 g/l,\n- czerwień fenolowa - 0,08 g/l, \n- agar - 12,0 g – 15,0 g/l.        \n",null,null,"op.= \n500g",4]
[null,"33.","Zestaw odczynników do barwienia preparatów metodą Grama","• zastosowanie: do badani mikrobiologicznych żywności i wody;\nzestaw zawiera:\n - r-r fioletu krystalicznego - 100 ml;\n - płyn Lugola- 100 ml;\n - r-r barwiący (r-r fuksyny zasadowej) - 100 ml;\n - r-r odbarwiający - 100 ml.",null,null,"zestaw",1,null,{"v":0,"d":"0.00"}]
[null,"34.","Zestaw odczynników do barwienia preparatów metodą Grama","• zastosowanie: do badani mikrobiologicznych żywności i wody;\nzestaw zawiera:\n - r-r fioletu krystalicznego - 100 ml;\n - płyn Lugola- 100 ml;\n - r-r barwiący (r-r fuksyny zasadowej) - 100 ml;\n - r-r odbarwiający - 100 ml.",null,null,"zestaw",1,null,{"v":0,"d":"0.00"}]
[null,"35.","Zestaw odczynników do barwienia preparatów metodą Grama","• zastosowanie: do badani mikrobiologicznych żywności i wody;\nzestaw zawiera:\n - r-r fioletu krystalicznego - 100 ml;\n - płyn Lugola- 100 ml;\n - r-r barwiący (r-r fuksyny zasadowej) - 100 ml;\n - r-r odbarwiający - 100 ml.",null,null,"zestaw",1,null,{"$f":"H44*I44","v":{"v":0,"d":"0.00"}}]
[null,"Cena oferty (brutto):",{"$nulls":7},{"$f":"SUM(J10:J44)","v":{"v":0,"d":"0.00"}}]
[null,"*","Należy wpisać nazwę producenta oraz numer katalogowy producenta oferowanego produktu. Niepodanie ww. danych będzie skutkować odrzuceniem oferty, chyba że dane te będą jednoznacznie wynikać z innych dokumentów dołączonych do oferty."]
[null,"**","Zawiera podatek od towarów i usług (VAT) wg obowiązującej stawki oraz koszty wszystkich świadczeń niezbędnych do wykonania zamówienia, w szczególności koszty transportu, ubezpieczenia, opakowania (także kaucjonowanego) itp."]
[]
[null,"Wymagania dodatkowe:"]
[]
[null,"1.","Do dostawy wymagany certyfikat jakości lub inny dokument potwierdzający jakość produktu w języku polskim lub angielskim w wersji papierowej lub dostępny w formie elektronicznej w miejscu wskazanym przez Wykonawcę (adres strony www)."]
[null,"2.","Certyfikat lub inny dokument musi zawierać:"]
[null,null,"• nazwę produktu,"]
[null,null,"• numer serii,"]
[null,null,"• nazwę producenta,"]
[null,null,"• data ważności lub okres ważności produktu,"]
[null,null,"• skład podłoża - za wyjątkiem poz. 1, 11, 12, 14, 18"]
[null,null,"• ogólną charakterystykę podłoża - za wyjątkiem poz. 1, 11, 12, 14, 18"]
[null,null,"• charakterystykę mikrobiologiczną (w tym wyniki kontroli mikrobiologicznej szczepami odniesienia z kolekcji WDCM i/lub ATCC - za wyjątkiem poz. 14-18, 30-32)"]
[null,"3.","Produkt wymieniony w tabeli musi być wyrobem medycznym w rozumieniu ustawy z dn. 07 kwietnia 2022 r. o wyrobach medycznych."]
[null,"4.","Miejsce dostawy: \n","WSSE w Krakowie  ul. Prądnicka 76, 31-202 Kraków - dla poz. 1, 4-6, 8, 12, 14, 15, 17, 25, 27, 29, 32, 33."]
[{"$nulls":3},"WSSE Oddział Laboratoryjny w Tarnowie  ul. Mościckiego 10,  33-100 Tarnów - dla poz. 2, 3, 7, 10, 18, 20, 21, 23, 24, 28, 31, 35."]
[{"$nulls":3},"WSSE Oddział Laboratoryjny w Wadowicach  ul. Teatralna 2, 34-100 Wadowice - dla poz. 9, 11, 13, 16, 19, 22, 26, 30, 34.\n"]

{"sheet":"Część 06","index":6,"n_rows":34,"n_cols":10,"rows_kept":34,"merged":[[0,6,0,9],[2,0,2,9],[3,0,3,9],[4,0,4,9],[6,1,8,1],[6,2,8,2],[6,3,8,3],[6,4,6,5],[6,6,8,6],[6,7,8,7],[6,8,8,8],[6,9,8,9],[7,4,8,4],[7,5,8,5],[15,1,15,8],[16,2,16,9],[17,2,17,9],[21,2,21,9]]}
[null,null,{"$f":"'Część 01'!$C$1","v":"AGZ.272.1.2024"},{"$nulls":3},"Załącznik 1A do SWZ"]
[]
["OPIS PRZEDMIOTU ZAMÓWIENIA - KALKULACJA CENY OFERTY"]
[{"$f":"MID(CELL(\"nazwa_pliku\",A1),FIND(\"]\",CELL(\"nazwa_pliku\",A1),1)+1,100)","v":"Część 06"}]
["Podłoża gotowe na płytkach do Legionella sp."]
[{"$f":"HYPERLINK(\"#'Suma'!A1\",\"wstecz\")","v":"wstecz"}]
[null,"L.p.","Przedmiot zamówienia","Szczegółowy opis","Opis oferowanego produktu",null,"Jednostka miary","Ilość","Cena jednostkowa brutto [zł] **","Wartość brutto [zł] "]
[{"$nulls":4},"Producent*","Nr katalogowy producenta*"]
[]
[null,"1.","Podłoże BCYE z cysteiną gotowe na płytkach\n","Zastosowanie: do oznaczania Legionella spp. z wody.                                                   \n• skład podłoża:\n- węgiel aktywny 2,0 g/l,\n- ekstrakt drożdżowy 10,0 g/l, \n- agar agar 12,0 -13,0 g/l,\n- bufor ACES - 10,0 g/l,\n- wodorotlenek potasu – 2,8 g/l,\n- pirofosforan żelaza - 0,25 g/l,\n- L-chlorowodorek cysteiny - 0,4 g/l,\n- α-ketoglutaran – 1,0 g/l.                  ",null,null,"op. = \n10 płytek",10,null,{"$f":"H10*I10","v":{"v":0,"d":"0.00"}}]
[null,"2.","Podłoże BCYE z cysteiną gotowe na płytkach\n","Zastosowanie: do oznaczania Legionella spp. z wody.                                                   \n• skład podłoża:\n- węgiel aktywny 2,0 g/l,\n- ekstrakt drożdżowy 10,0 g/l, \n- agar agar 12,0 -13,0 g/l,\n- bufor ACES - 10,0 g/l,\n- wodorotlenek potasu – 2,8 g/l,\n- pirofosforan żelaza - 0,25 g/l,\n- L-chlorowodorek cysteiny - 0,4 g/l,\n- α-ketoglutaran – 1,0 g/l.                  ",null,null,"op. = \n10 płytek",30,null,{"$f":"H11*I11","v":{"v":0,"d":"0.00"}}]
[null,"3.","Podłoże BCYE bez cysteiny gotowe na płytkach\n","Zastosowanie: do oznaczania Legionella spp. z wody.                                                  \n• skład podłoża:\n- węgiel aktywny 2,0 g/l,\n- ekstrakt drożdżowy 10,0 g/l, \n- agar agar 12,0 -13,0 g/l,\n- bufor ACES - 10,0 g/l,\n- wodorotlenek potasu – 2,8 g/l,\n- pirofosforan żelaza - 0,25 g/l,\n- α-ketoglutaran – 1,0 g/l.                  ",null,null,"op. = \n10 płytek",10,null,{"$f":"H12*I12","v":{"v":0,"d":"0.00"}}]
[null,"4.","Podłoże BCYE bez cysteiny gotowe na płytkach\n","Zastosowanie: do oznaczania Legionella spp. z wody.                                                  \n• skład podłoża:\n- węgiel aktywny 2,0 g/l,\n- ekstrakt drożdżowy 10,0 g/l, \n- agar agar 12,0 -13,0 g/l,\n- bufor ACES - 10,0 g/l,\n- wodorotlenek potasu – 2,8 g/l,\n- pirofosforan żelaza - 0,25 g/l,\n- α-ketoglutaran – 1,0 g/l.                  ",null,null,"op. = \n10 płytek",30,null,{"$f":"H13*I13","v":{"v":0,"d":"0.00"}}]
[null,"5.","Podłoże GVPC gotowe na płytkach\n","Zastosowanie: do oznaczania Legionella spp. z wody.                                                     \n• skład podłoża:\n- węgiel aktywny 2,0 g/l,\n- ekstrakt drożdżowy 10,0 g/l, \n- agar agar 12,0 -13,0 g/l,\n- bufor ACES - 10,0 g/l,\n- wodorotlenek potasu – 2,8 g/l,\n- pirofosforan żelaza - 0,25 g/l,\n- L-chlorowodorek cysteiny - 0,4 g/l,\n- α-ketoglutaran – 1,0 g/l,                         \n - glicyna 3,0 g/l,\n- chlorowodorek wankomycyny 1,0 mg/l,\n- siarczan polimyksyny 80000 IU/l,\n- cykloheksymid 80,0 mg/l.           ",null,null,"op. = \n10 płytek",420,null,{"$f":"H14*I14","v":{"v":0,"d":"0.00"}}]
[null,"6.","Podłoże GVPC gotowe na płytkach\n","Zastosowanie: do oznaczania Legionella spp. z wody.                                                     \n• skład podłoża:\n- węgiel aktywny 2,0 g/l,\n- ekstrakt drożdżowy 10,0 g/l, \n- agar agar 12,0 -13,0 g/l,\n- bufor ACES - 10,0 g/l,\n- wodorotlenek potasu – 2,8 g/l,\n- pirofosforan żelaza - 0,25 g/l,\n- L-chlorowodorek cysteiny - 0,4 g/l,\n- α-ketoglutaran – 1,0 g/l,                         \n - glicyna 3,0 g/l,\n- chlorowodorek wankomycyny 1,0 mg/l,\n- siarczan polimyksyny 80000 IU/l,\n- cykloheksymid 80,0 mg/l.           ",null,null,"op. = \n10 płytek",70,null,{"$f":"H15*I15","v":{"v":0,"d":"0.00"}}]
[null,"Cena oferty (brutto):",{"$nulls":7},{"$f":"SUM(J10:J15)","v":{"v":0,"d":"0.00"}}]
[null,"*","Należy wpisać nazwę producenta oraz numer katalogowy producenta oferowanego produktu. Niepodanie ww. danych będzie skutkować odrzuceniem oferty, chyba że dane te będą jednoznacznie wynikać z innych dokumentów dołączonych do oferty."]
[null,"**","Zawiera podatek od towarów i usług (VAT) wg obowiązującej stawki oraz koszty wszystkich świadczeń niezbędnych do wykonania zamówienia, w szczególności koszty transportu, ubezpieczenia, opakowania (także kaucjonowanego) itp."]
[]
[null,"Wymagania dodatkowe:"]
[]
[null,"1.","Do dostawy wymagany certyfikat jakości lub inny dokument potwierdzający jakość produktu w języku polskim lub angielskim w wersji papierowej lub dostępny w formie elektronicznej w miejscu wskazanym przez Wykonawcę (adres strony www)."]
[null,"2.","Certyfikat lub inny dokument musi zawierać:"]
[null,null,"• nazwę produktu,"]
[null,null,"• numer serii,"]
[null,null,"• nazwę producenta,"]
[null,null,"• data ważności lub okres ważności produktu,"]
[null,null,"• skład,"]
[null,null,"• ogólną charakterystykę,"]
[null,null,"• charakterystykę mikrobiologiczną (w tym wyniki kontroli mikrobiologicznej szczepami odniesienia z kolekcji WDCM i/lub ATCC)."]
[null,"3.","Dla poz. 1-4 Okres ważności min: 11 tygodni od daty dostawy."]
[null,"4.","Dla poz. 5-6 Okres ważności min: 8 tygodni od daty dostawy."]
[null,"5.","Miejsce dostawy: \n","WSSE Krakowie  ul. Prądnicka 76, 31-202 Kraków- dla poz 1, 3, 5"]
[{"$nulls":3},"WSSE Oddział Laboratoryjny w Tarnowie  ul. Mościckiego 10,  33-100 Tarnów - dla poz. 2, 4, 6\n"]

{"sheet":"Część 07","index":7,"n_rows":31,"n_cols":10,"rows_kept":31,"merged":[[0,8,0,9],[2,0,2,9],[3,0,3,9],[4,0,4,9],[6,1,8,1],[6,2,8,2],[6,3,8,3],[6,4,6,5],[6,6,8,6],[6,7,8,7],[6,8,8,8],[6,9,8,9],[7,4,8,4],[7,5,8,5],[12,1,12,7],[13,2,13,9],[14,2,14,9],[18,2,18,9]]}
[null,null,{"$f":"'Część 01'!$C$1","v":"AGZ.272.1.2024"},{"$nulls":5},"Załącznik 1A do SWZ"]
[]
["OPIS PRZEDMIOTU ZAMÓWIENIA - KALKULACJA CENY OFERTY"]
[{"$f":"MID(CELL(\"nazwa_pliku\",A1),FIND(\"]\",CELL(\"nazwa_pliku\",A1),1)+1,100)","v":"Część 07"}]
["Pożywki do oznaczania Legionella spp. "]
[{"$f":"HYPERLINK(\"#'Suma'!A1\",\"wstecz\")","v":"wstecz"}]
[null,"L.p.","Przedmiot zamówienia","Szczegółowy opis","Opis oferowanego produktu",null,"Jednostka miary","Ilość","Cena jednostkowa brutto [zł] **","Wartość brutto [zł] "]
[{"$nulls":4},"Producent*","Nr katalogowy producenta*"]
[]
[null,"1.","Legionella agar - baza ","• zastosowanie: agar BCYE (CYE) do hodowli Legionella spp.;\n• skład podłoża:\n - węgiel aktywny 2,0 g/l,\n - ekstrakt drożdżowy 10,0 - 11,00 g/l, \n - agar agar 12,0 -14,0 g/l,\n - α-ketoglutaran - 0,5 g/l,\n - bufor ACES - 10,0 g/l.",null,null,"op. = \n500g",3,null,{"$f":"H10*I10","v":{"v":0,"d":"0.00"}}]
[null,"2.","Legionella Suplement (dodatek selektywny) ","• zastosowanie: dodatek selektywny do agaru BCYE z cysteiną do wybiórczej izolacji Legionella spp.; po dodaniu suplementu otrzymujemy agar GVPC;\n• skład ampułki: \n  - glicyna wolna od amoniaku 1,5 g,\n  - chlorowodorek wankomycyny 0,5 mg,\n  - siarczan polimyksyny 40 000 IU,\n  - cykloheksymid 40,0 mg,\n• jedna ampułka na 500 ml podłoża GVPC.\n",null,null,"ampułka",40,null,{"$f":"H11*I11","v":{"v":0,"d":"0.00"}}]
[null,"3.","Legionella Suplement (dodatek wzrostowy)\n\n","• zastosowanie: dodatek wzrostowy do agaru BCYE baza dla hodowli Legionella spp.; po dodaniu suplementu otrzymujemy agar BCYE z cysteiną;\n• skład ampułki:\n  - pirofosforan żelaza - 0,125 g,\n  - L-chlorowodorek cysteiny - 0,2 g,\n  - α-ketoglutaran - 0,25 g,\n• jedna ampułka na 500 ml podłoża BCYE z cysteiną.\n",null,null,"ampułka",60,null,{"$f":"H12*I12","v":{"v":0,"d":"0.00"}}]
[null,"Cena oferty (brutto):",{"$nulls":7},{"$f":"SUM(J10:J12)","v":{"v":0,"d":"0.00"}}]
[null,"*","Należy wpisać nazwę producenta oraz numer katalogowy producenta oferowanego produktu. Niepodanie ww. danych będzie skutkować odrzuceniem oferty, chyba że dane te będą jednoznacznie wynikać z innych dokumentów dołączonych do oferty."]
[null,"**","Zawiera podatek od towarów i usług (VAT) wg obowiązującej stawki oraz koszty wszystkich świadczeń niezbędnych do wykonania zamówienia, w szczególności koszty transportu, ubezpieczenia, opakowania (także kaucjonowanego) itp."]
[]
[null,"Wymagania dodatkowe:"]
[]
[null,"1.","DO OFERTY i dostawy wymagany certyfikat jakości lub inny dokument potwierdzający jakość produktu w języku polskim lub angielskim w wersji papierowej lub dostępny w formie elektronicznej w miejscu wskazanym przez Wykonawcę (adres strony www)."]
[null,"2.","Certyfikat lub inny dokument musi zawierać:"]
[null,null,"• nazwę produktu,"]
[null,null,"• numer serii,"]
[null,null,"• nazwę producenta,"]
[null,null,"• datę ważności lub okres ważności produktu,"]
[null,null,"• datę kontroli produktu,"]
[null,null,"• skład,"]
[null,null,"• ogólną charakterystykę,"]
[null,null,"• charakterystykę mikrobiologiczną (w tym wyniki kontroli mikrobiologicznej szczepami odniesienia z kolekcji WDCM i/lub ATCC)."]
[null,"3.","Okres ważności: min. 12 miesięcy od daty dostawy."]
[null,"4.","Produkty muszą być ze sobą kompatybilne."]
[null,"5.","Miejsce dostawy:","WSSE Kraków  ul. Prądnicka 76, 31-202 Kraków"]

{"sheet":"Część 08","index":8,"n_rows":30,"n_cols":10,"rows_kept":30,"merged":[[0,6,0,9],[2,0,2,9],[3,0,3,9],[4,0,4,9],[6,1,8,1],[6,2,8,2],[6,3,8,3],[6,4,6,5],[6,6,8,6],[6,7,8,7],[6,8,8,8],[6,9,8,9],[7,4,8,4],[7,5,8,5],[11,1,11,8],[12,2,12,9],[13,2,13,9],[17,2,17,9],[26,2,26,7]]}
[null,null,{"$f":"'Część 01'!$C$1","v":"AGZ.272.1.2024"},{"$nulls":3},"Załącznik 1A do SWZ"]
[]
["OPIS PRZEDMIOTU ZAMÓWIENIA - KALKULACJA CENY OFERTY"]
[{"$f":"MID(CELL(\"nazwa_pliku\",A1),FIND(\"]\",CELL(\"nazwa_pliku\",A1),1)+1,100)","v":"Część 08"}]
["Podłoża gotowe do oznaczania gronkowców"]
[{"$f":"HYPERLINK(\"#'Suma'!A1\",\"wstecz\")","v":"wstecz"}]
[null,"L.p.","Przedmiot zamówienia","Szczegółowy opis","Opis oferowanego produktu",null,"Jednostka miary","Ilość","Cena jednostkowa brutto [zł] **","Wartość brutto [zł] "]
[{"$nulls":4},"Producent*","Nr katalogowy producenta*"]
[]
[null,"1.","Agar Baird Parker RPF\n","• zastosowanie: do badań mikrobiologicznych w kierunku gronkowców\n• gotowe podłoże;\n• zestaw zawiera (część 1 i część 2):\n\nskład części 1 \n- pepton mięsny (bydlęcy/wieprzowy) – \n15,0 g/l; \n- ekstrakt drożdżowy  – 1,0 g/l;\n- chlorek litu – 5,0 g/l; \n- pirogronian sodu  – 10,0 g/l; \n- glicyna  – 12,0 g/l; \n- Agar – 12,0 - 22,0 g/l; \n\nskład części 2 \n- fibrynogen wołowy - 3,75 g/l,\n- osocze królicze - 25,0 ml/l,\n- inhibitor trypsyny - 25,0 mg/l,\n- Telluryn potasu 25,0 mg/l.\n",null,null,"zestaw",10,null,{"$f":"H10*I10","v":{"v":0,"d":"0.00"}}]
[null,"2.","Agar Baird Parker RPF\n","• zastosowanie: do badań mikrobiologicznych w kierunku gronkowców\n• gotowe podłoże;\n• zestaw zawiera (część 1 i część 2):\n\nskład części 1 \n- pepton mięsny (bydlęcy/wieprzowy) – \n15,0 g/l; \n- ekstrakt drożdżowy  – 1,0 g/l;\n- chlorek litu – 5,0 g/l; \n- pirogronian sodu  – 10,0 g/l; \n- glicyna  – 12,0 g/l; \n- Agar – 12,0 - 22,0 g/l; \n\nskład części 2 \n- fibrynogen wołowy - 3,75 g/l,\n- osocze królicze - 25,0 ml/l,\n- inhibitor trypsyny - 25,0 mg/l,\n- Telluryn potasu 25,0 mg/l.\n",null,null,"zestaw",35,null,{"$f":"H11*I11","v":{"v":0,"d":"0.00"}}]
[null,"Cena oferty (brutto):",{"$nulls":7},{"$f":"SUM(J10:J11)","v":{"v":0,"d":"0.00"}}]
[null,"*","Należy wpisać nazwę producenta oraz numer katalogowy producenta oferowanego produktu. Niepodanie ww. danych będzie skutkować odrzuceniem oferty, chyba że dane te będą jednoznacznie wynikać z innych dokumentów dołączonych do oferty."]
[null,"**","Zawiera podatek od towarów i usług (VAT) wg obowiązującej stawki oraz koszty wszystkich świadczeń niezbędnych do wykonania zamówienia, w szczególności koszty transportu, ubezpieczenia, opakowania (także kaucjonowanego) itp."]
[]
[null,"Wymagania dodatkowe:"]
[]
[null,"1.","Do dostawy wymagany certyfikat jakości lub inny dokument potwierdzający jakość produktu w języku polskim lub angielskim w wersji papierowej lub dostępny w formie elektronicznej w miejscu wskazanym przez wykonawcę (adres strony www). "]
[null,"2.","Certyfikat lub inny dokument musi zawierać:"]
[null,null,"• nazwę produktu,"]
[null,null,"• numer serii,"]
[null,null,"• nazwę producenta,"]
[null,null,"• data ważności lub okres ważności produktu,"]
[null,null,"• skład,"]
[null,null,"• ogólną charakterystykę podłoża,"]
[null,"3.","• charakterystykę mikrobiologiczną (w tym wyniki kontroli mikrobiologicznej szczepami odniesienia z kolekcji WDCM i/lub ATCC)."]
[null,"4.","Okres ważności: min. 10 miesięcy od daty dostawy."]
[null,"5.","Zamawiajacy wymaga aby elementy zestawu z miały tą samą datę ważności"]
[null,"6.","Miejsce dostawy: \n","WSSE Oddział Laboratoryjny w Tarnowie  ul. Mościckiego 10,  33-100 Tarnów - dla poz. 1       \n"]
[{"$nulls":3},"WSSE Oddział Laboratoryjny w Wadowicach  ul. Teatralna 2, 34-100 Wadowice - dla poz. 2\n"]

{"sheet":"Część 09","index":9,"n_rows":31,"n_cols":10,"rows_kept":31,"merged":[[0,6,0,9],[2,0,2,9],[3,0,3,9],[4,0,4,9],[6,1,8,1],[6,2,8,2],[6,3,8,3],[6,4,6,5],[6,6,8,6],[6,7,8,7],[6,8,8,8],[6,9,8,9],[7,4,8,4],[7,5,8,5],[14,1,14,8],[15,2,15,9],[16,2,16,9],[20,2,20,9],[29,2,29,7]]}
[null,null,{"$f":"'Część 01'!$C$1","v":"AGZ.272.1.2024"},{"$nulls":3},"Załącznik 1A do SWZ - zmiana z dnia 18.03.2024 r."]
[]
["OPIS PRZEDMIOTU ZAMÓWIENIA - KALKULACJA CENY OFERTY"]
[{"$f":"MID(CELL(\"nazwa_pliku\",A1),FIND(\"]\",CELL(\"nazwa_pliku\",A1),1)+1,100)","v":"Część 09"}]
["Podłoża gotowe do diagnostyki medycznej - część 2"]
[{"$f":"HYPERLINK(\"#'Suma'!A1\",\"wstecz\")","v":"wstecz"}]
[null,"L.p.","Przedmiot zamówienia","Szczegółowy opis","Opis oferowanego produktu",null,"Jednostka miary","Ilość","Cena jednostkowa brutto [zł] **","Wartość brutto [zł] "]
[{"$nulls":4},"Producent*","Nr katalogowy producenta*"]
[]
[null,"1.","Agarek amerykański","• podłoże do przechowywania szczepów  o niższych wymaganiach odżywczych;\n• specyfikacja:\n- podłoża w szczelnie zamkniętej probówce o obj. 5 ml\n• skład podłoża : \n- Enzymatyczny hydrolizat żelatynowy 5,0 g/l;\n- wyciąg mięsny 3,0 g/l;\n- chlorek sodu - 8,0 g/l;\n- agar 13-16 - g/l.                                               ",null,null,"op. = \n50 szt",1,null,{"$f":"H10*I10","v":{"v":0,"d":"0.00"}}]
[null,"2.","Bulion mózgowo - sercowy BHI Bulion (Brain Heart Infusion) ","Podłoże płynne do hodowlii drobnoustrojów;\n• specyfikacja:\n• sterylne podłoże w probówkach zamykanych plastikowym korkiem, gotowe do użycia;\n• skład podłoża:\n- Wyciąg mózgowo-sercowy 17,5 g/l,\n- pepton - 10,0 g/l,\n- Chlorek sodu - 5,0 g,\n- Glukoza - 2,0 g,\n- Fosforan disodu - 2,5 g,\n- agar - 11-17 g/l.",null,null,"op. = \n50 szt",1,null,{"$f":"H11*I11","v":{"v":0,"d":"0.00"}}]
[null,"3.","Płytki CIN do pałeczek Yersinia = Yersinia CIN Agar","Podłoże do wybiórczej izolacji i hodowli Yersinia enterocolitica;\n• specyfikacja:\n- podłoże na płytce (ø90 mm);\n• skład podłoża: \n- Enzymat. hydrolizat tk. zwierzęcych i roślinnych - 3,0 g/l;\n- Enzymatyczny hydrolizat żelatyny - 17,0 g/l;\n- Ekstrakt drożdżowy - 2,0 g/l;\n- Mannitol - 20,0 g/l; \n- Dezoksycholan sodu - 0,5 g/l;\n-  Chlorek sodu - 1,0 g/l;\n- Hepatahydrat siarczanu magnezu - 0,01 g/l; \n- Pirogronian sodu - 2,0 g/l;\n- Czerwień obojętna - 0,03 g/l;\n- agar - 11-14 g/l;\n- Fiolet krystaliczny - 0,001 g/l;\n- cefsulodyna - 0,015 g/l;\n- irgasan - 0,004 g/l;\n- nowobiocyna - 0,0025 g/l;",null,null,"op.=\n10 płytek",20,null,{"$f":"H12*I12","v":{"v":0,"d":"0.00"}}]
[null,"4.","Chromagar Y. Enterocolitica","Podłoże przeznaczone do szybkiego wykrywania i różnicowania patogennych Yersinia enterocolitica;\n• specyfikacja:\n- podłoże na płytce (ø90 mm);\n• skład podłoża: \n- agar 15,0 g/l;\n- mieszanina soli 5,0 g/l\n- peptony 20,0 g/l;\n- mieszanina chromogenna 1,3 g/l; \n- suplement selektywny 0,1 g/l.",null,null,"op.=\n10 płytek",10,null,{"$f":"H13*I13","v":{"v":0,"d":"0.00"}}]
[null,"5.","Chromagar Salmonella PLUS ","Podłoże przeznaczone do izolacji Salmonella spp.;\n• specyfikacja:\n- podłoże na płytce (ø90 mm);\n• skład podłoża: \n- agar - 11,0 - 17,0 g/l;\n- mieszanina wzrostowa - 6,0 ml/l\n- pepton z ekstraktem drożdżowym - 8,0 g/l;\n- mieszanina chromogenna - 1,3 g/l; \n- mieszanina soli - 8,5 g/l.",null,null,"op.=\n10 płytek",70,null,{"$f":"H14*I14","v":{"v":0,"d":"0.00"}}]
[null,"Cena oferty (brutto):",{"$nulls":7},{"$f":"SUM(J10:J14)","v":{"v":0,"d":"0.00"}}]
[null,"*","Należy wpisać nazwę producenta oraz numer katalogowy producenta oferowanego produktu. Niepodanie ww. danych będzie skutkować odrzuceniem oferty, chyba że dane te będą jednoznacznie wynikać z innych dokumentów dołączonych do oferty."]
[null,"**","Zawiera podatek od towarów i usług (VAT) wg obowiązującej stawki oraz koszty wszystkich świadczeń niezbędnych do wykonania zamówienia, w szczególności koszty transportu, ubezpieczenia, opakowania (także kaucjonowanego) itp."]
[]
[null,"Wymagania dodatkowe:"]
[]
[null,"1.","Do dostawy wymagany certyfikat jakości lub inny dokument potwierdzający jakość produktu w języku polskim lub angielskim w wersji papierowej lub dostępny w formie elektronicznej w miejscu wskazanym przez wykonawcę (adres strony www)."]
[null,null,"Certyfikat lub inny dokument musi zawierać:"]
[null,null,"• nazwę produktu,"]
[null,null,"• numer serii,"]
[null,null,"• nazwę producenta,"]
[null,null,"• data ważności lub okres ważności produktu,"]
[null,null,"• skład podłoża,"]
[null,null,"• ogólną charakterystykę podłoża (w tym wyniki kontroli mikrobiologicznej szczepami odniesienia z kolekcji WDCM i/lub ATCC)."]
[null,"2.","Okres ważności: min. 10 tygodni od daty dostawy."]
[null,"3.","Produkty poz. 1-4  muszą być wyrobem medycznym w rozumieniu ustawą z dn. 07 kwietnia 2022 r. o wyrobach medycznych."]
[null,"4.","Miejsce dostawy: ","WSSE Kraków  ul. Prądnicka 76, 31-202 Kraków \n"]

{"sheet":"Część 10","index":10,"n_rows":28,"n_cols":10,"rows_kept":28,"merged":[[0,6,0,9],[2,0,2,9],[3,0,3,9],[4,0,4,9],[6,1,8,1],[6,2,8,2],[6,3,8,3],[6,4,6,5],[6,6,8,6],[6,7,8,7],[6,8,8,8],[6,9,8,9],[7,4,8,4],[7,5,8,5],[11,1,11,8],[12,2,12,9],[13,2,13,9],[17,2,17,9],[26,2,26,9]]}
[null,null,{"$f":"'Część 01'!$C$1","v":"AGZ.272.1.2024"},{"$nulls":3},"Załącznik 1A do SWZ"]
[]
["OPIS PRZEDMIOTU ZAMÓWIENIA - KALKULACJA CENY OFERTY"]
[{"$f":"MID(CELL(\"nazwa_pliku\",A1),FIND(\"]\",CELL(\"nazwa_pliku\",A1),1)+1,100)","v":"Część 10"}]
["Podłoża do Campylobacter i Cronobacter"]
[{"$f":"HYPERLINK(\"#'Suma'!A1\",\"wstecz\")","v":"wstecz"}]
[null,"L.p.","Przedmiot zamówienia","Szczegółowy opis","Opis oferowanego produktu",null,"Jednostka miary","Ilość","Cena jednostkowa brutto [zł] **","Wartość brutto [zł] "]
[{"$nulls":4},"Producent*","Nr katalogowy producenta*"]
[]
[null,"1.","PRESTON BROTH BASE ","• zastosowanie: do izolacji bakterii z rodzaju Campylobacter\n• baza bulionu                                     \n• skład podłoża:\n- enzymatyczny hydrolizat tk. zwierzęcych - 10,00g/l;\n- Chlorek sodu - 5,00g/l;\n- pepton - 10,00 g/l.\n                                             \n\n  \n\n",null,null,"op. = \n250g",2,null,{"$f":"H10*I10","v":{"v":0,"d":"0.00"}}]
[null,"2.","PRESTON MODIFIED SUPLEMENT ","• zastosowanie: do izolacji bakterii z rodzaju Campylobacter\n• selektywny dodatek                                     \n• skład podłoża:\n- Polimyskyna B 2500 IU;\n- Amfoterycyna B 5mg;\n- Rifampicyna 5mg;\n- mleczan trimetoprimu 5 mg.\n                                             \n\n  \n\n",null,null,"op. = 10 fiolek",1,null,{"$f":"H11*I11","v":{"v":0,"d":"0.00"}}]
[null,"Cena oferty (brutto):",{"$nulls":7},{"$f":"SUM(J10:J11)","v":{"v":0,"d":"0.00"}}]
[null,"*","Należy wpisać nazwę producenta oraz numer katalogowy producenta oferowanego produktu. Niepodanie ww. danych będzie skutkować odrzuceniem oferty, chyba że dane te będą jednoznacznie wynikać z innych dokumentów dołączonych do oferty."]
[null,"**","Zawiera podatek od towarów i usług (VAT) wg obowiązującej stawki oraz koszty wszystkich świadczeń niezbędnych do wykonania zamówienia, w szczególności koszty transportu, ubezpieczenia, opakowania (także kaucjonowanego) itp."]
[]
[null,"Wymagania dodatkowe:"]
[]
[null,"1.","Do dostawy wymagany certyfikat jakości lub inny dokument potwierdzający spełnienie wymagań w języku polskim lub angielskim w wersji papierowej lub dostępny w formie elektronicznej w miejscu wskazanym przez Wykonawcę (adres strony www). Wymienione dokumenty nie muszą potwierdzać zastosowania."]
[null,"2.","Certyfikat lub inny dokument musi zawierać:"]
[null,null,"• nazwę produktu,"]
[null,null,"• numer serii,"]
[null,null,"• nazwę producenta,"]
[null,null,"• data ważności lub okres ważności produktu,"]
[null,null,"• skład podłoża,"]
[null,null,"• ogólną charakterystykę podłoża,"]
[null,null,"• charakterystykę mikrobiologiczną (w tym wyniki kontroli mikrobiologicznej szczepami odniesienia z kolekcji WDCM i/lub ATCC)."]
[null,"3.","Okres ważności: min. 12 miesięcy od daty dostawy."]
[null,"4.","Miejsce dostawy: \n","WSSE Kraków ul. Prądnicka 76, 31-202 Kraków"]

{"sheet":"Część 11","index":11,"n_rows":28,"n_cols":10,"rows_kept":28,"merged":[[0,6,0,9],[2,0,2,9],[3,0,3,9],[4,0,4,9],[6,1,8,1],[6,2,8,2],[6,3,8,3],[6,4,6,5],[6,6,8,6],[6,7,8,7],[6,8,8,8],[6,9,8,9],[7,4,8,4],[7,5,8,5],[11,1,11,8],[12,2,12,9],[13,2,13,9],[17,2,17,9],[19,2,19,3],[22,2,22,3],[25,2,25,9]]}
[null,null,{"$f":"'Część 01'!$C$1","v":"AGZ.272.1.2024"},{"$nulls":3},"Załącznik 1A do SWZ"]
[]
["OPIS PRZEDMIOTU ZAMÓWIENIA - KALKULACJA CENY OFERTY"]
[{"$f":"MID(CELL(\"nazwa_pliku\",A1),FIND(\"]\",CELL(\"nazwa_pliku\",A1),1)+1,100)","v":"Część 11"}]
["Podłoża Salmonella "]
[{"$f":"HYPERLINK(\"#'Suma'!A1\",\"wstecz\")","v":"wstecz"}]
[null,"L.p.","Przedmiot zamówienia","Szczegółowy opis","Opis oferowanego produktu",null,"Jednostka miary","Ilość","Cena jednostkowa brutto [zł] **","Wartość brutto [zł] "]
[{"$nulls":4},"Producent*","Nr katalogowy producenta*"]
[]
[null,"1.","RVS Bulion \n\n \n","• zastosowanie: Salmonella;\n• proszek;\n• skład:\n- pepton z mąki sojowej  - 4,5 g/l;\n- chlorek magnezu x 6 wodny - 28,6 g/l (chlorek magnezu odwodniony-13,58 g/l);\n- chlorek sodu - 7,2 g/l;\n- wodorofosforan dipotasu - 0,18 g/l;\n- diwodorofosforan potasu - 1,26 g/l;\n- zieleń malachitowa - 0,036 g/l.",null,null,"op.=\n500g",2,null,{"$f":"H10*I10","v":{"v":0,"d":"0.00"}}]
[null,"2.","RAPID' Salmonella Agar  (Sterbios)","• zastosowanie: Salmonella spp;       \n• skład:\n -mieszanka odżywcza 14,5 g/l;\n- substancje wybiórcze  14,0 g/;l \n-mieszanina chromogenna 2,3 g/l;\n-agar  11-15 g/l.             \n",null,null,"op.= 20 płytek",20,null,{"v":0,"d":"0.00"}]
[null,"Cena oferty (brutto):",{"$nulls":7},{"$f":"SUM(J10:J11)","v":{"v":0,"d":"0.00"}}]
[null,"*","Należy wpisać nazwę producenta oraz numer katalogowy producenta oferowanego produktu. Niepodanie ww. danych będzie skutkować odrzuceniem oferty, chyba że dane te będą jednoznacznie wynikać z innych dokumentów dołączonych do oferty."]
[null,"**","Zawiera podatek od towarów i usług (VAT) wg obowiązującej stawki oraz koszty wszystkich świadczeń niezbędnych do wykonania zamówienia, w szczególności koszty transportu, ubezpieczenia, opakowania (także kaucjonowanego) itp."]
[]
[null,"Wymagania dodatkowe:"]
[]
[null,"1.","Do dostawy wymagany certyfikat jakości lub inny dokument potwierdzający jakość produktu w języku polskim lub angielskim w wersji papierowej lub dostępny w formie elektronicznej w miejscu wskazanym przez Wykonawcę (adres strony www)."]
[null,"2.","Certyfikat lub inny dokument musi zawierać:"]
[null,null,"• nazwę produktu,"]
[null,null,"• nazwę producenta,"]
[null,null,"• data ważności lub okres ważności produktu,"]
[null,null,"• skład podłoża,"]
[null,null,"• ogólną charakterystykę,"]
[null,null,"• charakterystykę mikrobiologiczną (w tym wyniki kontroli mikrobiologicznej szczepami odniesienia z kolekcji ATCC )."]
[null,"3.","Dla poz. 1 okres ważności: min. 18 miesięcy od daty dostawy. W przypadku okresu ważności krótszego niż 18 miesięcy, wymagane jest min. ¾ okresu ważności deklarowanego przez producenta (zapisanego w certyfikacie jakości lub innm dokumencie do danej partii, o którym mowa w pkt. 1)\n"]
[null,"4.","Dla poz. 2 okres ważności: min. 6 tygodni od daty dostawy."]
[null,"5.","Miejsce dostawy:","WSSE Kraków  ul. Prądnicka 76, 31-202 Kraków"]

{"sheet":"Część 12","index":12,"n_rows":28,"n_cols":10,"rows_kept":28,"merged":[[0,6,0,9],[2,0,2,9],[3,0,3,9],[4,0,4,9],[6,1,8,1],[6,2,8,2],[6,3,8,3],[6,4,6,5],[6,6,8,6],[6,7,8,7],[6,8,8,8],[6,9,8,9],[7,4,8,4],[7,5,8,5],[12,1,12,8],[13,2,13,9],[14,2,14,9],[18,2,18,7],[25,2,25,7]]}
[null,null,"AGZ.272.1.2023",{"$nulls":3},"Załącznik 1A do SWZ"]
[]
["OPIS PRZEDMIOTU ZAMÓWIENIA - KALKULACJA CENY OFERTY"]
[{"$f":"MID(CELL(\"nazwa_pliku\",A1),FIND(\"]\",CELL(\"nazwa_pliku\",A1),1)+1,100)","v":"Część 12"}]
["Podłoża do oznaczania colifagów"]
[{"$f":"HYPERLINK(\"#'Suma'!A1\",\"wstecz\")","v":"wstecz"}]
[null,"L.p.","Przedmiot zamówienia","Szczegółowy opis","Opis oferowanego produktu",null,"Jednostka miary","Ilość","Cena jednostkowa brutto [zł] **","Wartość brutto [zł] "]
[{"$nulls":4},"Producent*","Nr katalogowy producenta*"]
[]
[null,"1.","Zmodyfikowany bulion Scholtensa (MSB)","Zmodyfikowany bulion Scholtensa do oznaczania ilościowego colifagów somatycznych w wodzie:\n• Skład:\n- pepton - 10,0  g/l,\n- wyciąg drożdżowy - 3,0  g/l,\n- wyciąg mięsny - 12,0  g/l,\n- NaCl - 3,0  g/l,\n- Na2CO3 - 0,75  g/l,,\n- MgCl2 - 0,6  g/l.",null,null,"op.=\n500g",3,null,{"$f":"H10*I10","v":{"v":0,"d":"0.00"}}]
[null,"2.","Zmodyfikowane podłoże agarowe Scholtensa (MSA)","Agarowe zmodyfikowane podłoże Scholtensa do oznaczania ilościowego colifagów somatycznych w wodzie:\n• Skład:\n- pepton - 10,0  g/l,,\n- wyciąg drożdżowy - 3,0  g/l,\n- wyciąg mięsny - 12,0  g/l,\n- NaCl - 3,0  g/l,\n- Na2CO3 0,75  g/l,\n- MgCl2 0,6  g/l,\n- agar 10,0 - 20,0  g/l.",null,null,"op.=\n500g",2,null,{"v":0,"d":"0.00"}]
[null,"3.","Sól fizjologiczna z peptonem","• proszek,\n• Skład:\n- pepton 1,0 g/l,\n- chlorek sodu 8,5  g/l.",null,null,"op.=\n500g",1,null,{"v":0,"d":"0.00"}]
[null,"Cena oferty (brutto):",{"$nulls":7},{"$f":"SUM(J10:J12)","v":{"v":0,"d":"0.00"}}]
[null,"*","Należy wpisać nazwę producenta oraz numer katalogowy producenta oferowanego produktu. Niepodanie ww. danych będzie skutkować odrzuceniem oferty, chyba że dane te będą jednoznacznie wynikać z innych dokumentów dołączonych do oferty."]
[null,"**","Zawiera podatek od towarów i usług (VAT) wg obowiązującej stawki oraz koszty wszystkich świadczeń niezbędnych do wykonania zamówienia, w szczególności koszty transportu, ubezpieczenia, opakowania (także kaucjonowanego) itp."]
[]
[null,"Wymagania dodatkowe:"]
[]
[null,"1.","Do dostawy wymagany certyfikat jakości lub inny dokument potwierdzający jakość produktu w języku polskim lub angielskim w wersji papierowej lub dostępny w formie elektronicznej w miejscu wskazanym przez Wykonawcę (adres strony www). "]
[null,"2.","Certyfikat lub inny dokument musi zawierać:"]
[null,null,"• nazwę produktu,\n\n\n\n\n\n\n"]
[null,null,"• nazwę producenta,"]
[null,null,"• data ważności lub okres ważności produktu,"]
[null,null,"• skład podłoża,"]
[null,null,"\n• ogólną charakterystykę,"]
[null,null,"• charakterystykę mikrobiologiczną (w tym wyniki kontroli mikrobiologicznej szczepami odniesienia z kolekcji WDCM i/lub ATCC)."]
[null,"3.","Okres ważności: min. 12 miesięcy od daty dostawy."]
[null,"4.","Miejsce dostawy:\n","WSSE Kraków  ul. Prądnicka 76, 31-202 Kraków\n"]

{"sheet":"Część 13","index":13,"n_rows":31,"n_cols":10,"rows_kept":31,"merged":[[0,6,0,9],[2,0,2,9],[3,0,3,9],[4,0,4,9],[6,1,8,1],[6,2,8,2],[6,3,8,3],[6,4,6,5],[6,6,8,6],[6,7,8,7],[6,8,8,8],[6,9,8,9],[7,4,8,4],[7,5,8,5],[14,1,14,8],[15,2,15,9],[16,2,16,9],[20,2,20,9],[29,2,29,7]]}
[null,null,{"$f":"'Część 01'!$C$1","v":"AGZ.272.1.2024"},{"$nulls":3},"Załącznik 1A do SWZ"]
[]
["OPIS PRZEDMIOTU ZAMÓWIENIA - KALKULACJA CENY OFERTY"]
[{"$f":"MID(CELL(\"nazwa_pliku\",A1),FIND(\"]\",CELL(\"nazwa_pliku\",A1),1)+1,100)","v":"Część 13"}]
["Podłoża gotowe do diagnostyki medycznej - część 3"]
[{"$f":"HYPERLINK(\"#'Suma'!A1\",\"wstecz\")","v":"wstecz"}]
[null,"L.p.","Przedmiot zamówienia","Szczegółowy opis","Opis oferowanego produktu",null,"Jednostka miary","Ilość","Cena jednostkowa brutto [zł] **","Wartość brutto [zł] "]
[{"$nulls":4},"Producent*","Nr katalogowy producenta*"]
[]
[null,"1.","Cetrymide Agar  - Podłoże do izolacji i identyfikacji Pseudomonas aeruginosa \n\n","Podłoże gotowe do izolacji i identyfikacji drobnoustrojów                   \n• podłoże na płytce (ø90 mm);\n• skład podłoża w g/l wody destylowanej: \n - Enzymatyczny hydrolizat żelatynowy 20,0 g;\n - Glicerol 10 ml; \n - Chlorek magnezu 1,4 g ;\n - Siarczan dipotasu 10,0 g; \n - Cetrymid 0,3 g; \n - Agar 11-16 g.\n\n                                             ",null,null,"op. = \n10 płytek",2,null,{"$f":"H10*I10","v":{"v":0,"d":"0.00"}}]
[null,"2.","Chromagar O157 Podłoże wybiórcze do izolacji i szybkiej identyfikacji Escherichia coli O157\n\n\n","Podłoże gotowe do izolacji i identyfikacji drobnoustrojów                   \n• podłoże na płytce (ø90 mm);\n• Skład podłoża w g/l wody destylowanej: \n - mieszanina chromogenna 1,2 g \n - pepton z ekstraktem drożdżowym 13,0g \n - agar 12,0 17,0 g.\n\n                                             ",null,null,"op. = \n10 płytek",2,null,{"$f":"H11*I11","v":{"v":0,"d":"0.00"}}]
[null,"3.","Chromagar ECC - Podłoże wybiórcze do izolacji i ilościowego oznaczania \nEscherichia coli i bakterii z grupy coli ","Podłoże gotowe do izolacji i identyfikacji drobnoustrojów                   \n• podłoże na płytce (ø90 mm);\n• skład podłoża :                                               \n- Mieszanina chromogenna - 4,8 g/l;\n - Pepton z ekstraktem drożdżowym - 8,0 g/l;\n - Chlorek sodu - 5,0 g/l;\n - Agar - 12,0-17,0 g/l.\n                                             ",null,null,"op. = \n10 płytek",2,null,{"v":0,"d":"0.00"}]
[null,"4.","Chromagar STEC Podłoże wybiórcze do izolacji Escherichia coli wytwarzających toksynę Shiga (STEC)","Podłoże gotowe do izolacji i identyfikacji drobnoustrojów                   \n• podłoże na płytce (ø90 mm);\n• skład podłoża :\n - Agar - 12,0-17,0 g/l;\n - Suplement selektywny - 10 ml/l;\n - Pepton i ekstrakt drożdżowy - 8,0 g/l;\n - Sole - 5,2 g/l;\n - Mieszanina chromogenna - 2,6 g/l.\n                                             ",null,null,"op. = \n10 płytek",2,null,{"v":0,"d":"0.00"}]
[null,"5.","CHROMagar Campylobacter - Podłoże wybiórcze do izolacji Campylobacter spp.\n\n\n","Podłoże gotowe do hodowlii drobnoustrojów                   \n• podłoże na płytce (ø90 mm);\n• Skład podłoża w g/l wody destylowanej: \n - Pepton i ekstrakt drożdżowy 25.0 g                  \n - Suplement selektywny 0,2 g              \n - Mieszanina soli 9,0 g                            \n - Mieszanina chromogenna 2,2 g             \n - Agar 13,0 - 17,0 g.\n",null,null,"op. = \n10 płytek",5,null,{"v":0,"d":"0.00"}]
[null,"Cena oferty (brutto):",{"$nulls":7},{"$f":"SUM(J10:J14)","v":{"v":0,"d":"0.00"}}]
[null,"*","Należy wpisać nazwę producenta oraz numer katalogowy producenta oferowanego produktu. Niepodanie ww. danych będzie skutkować odrzuceniem oferty, chyba że dane te będą jednoznacznie wynikać z innych dokumentów dołączonych do oferty."]
[null,"**","Zawiera podatek od towarów i usług (VAT) wg obowiązującej stawki oraz koszty wszystkich świadczeń niezbędnych do wykonania zamówienia, w szczególności koszty transportu, ubezpieczenia, opakowania (także kaucjonowanego) itp."]
[]
[null,"Wymagania dodatkowe:"]
[]
[null,"1.","Do dostawy wymagany certyfikat jakości lub inny dokument potwierdzający jakość produktu w języku polskim lub angielskim w wersji papierowej lub dostępny w formie elektronicznej w miejscu wskazanym przez wykonawcę (adres strony www)."]
[null,null,"Certyfikat lub inny dokument musi zawierać:"]
[null,null,"• nazwę produktu,"]
[null,null,"• numer serii,"]
[null,null,"• nazwę producenta,"]
[null,null,"• data ważności lub okres ważności produktu,"]
[null,null,"• skład podłoża,"]
[null,null,"• ogólną charakterystykę podłoża (w tym wyniki kontroli mikrobiologicznej szczepami odniesienia z kolekcji WDCM i/lub ATCC)."]
[null,"2.","Okres ważności: 11 tygodni od daty dostawy."]
[null,"3.","Produkty wymienione w tabeli muszą być wyrobem medycznym w rozumieniu ustawą z dn. 07 kwietnia 2022 r. o wyrobach medycznych."]
[null,"4.","Miejsce dostawy: ","WSSE Kraków  ul. Prądnicka 76, 31-202 Kraków \n"]

{"sheet":"Część 14","index":14,"n_rows":27,"n_cols":10,"rows_kept":27,"merged":[[0,6,0,9],[2,0,2,9],[3,0,3,9],[4,0,4,9],[6,1,8,1],[6,2,8,2],[6,3,8,3],[6,4,6,5],[6,6,8,6],[6,7,8,7],[6,8,8,8],[6,9,8,9],[7,4,8,4],[7,5,8,5],[10,1,10,8],[11,2,11,9],[12,2,12,9],[16,2,16,7],[25,2,25,7]]}
[null,null,{"$f":"'Część 01'!$C$1","v":"AGZ.272.1.2024"},{"$nulls":3},"Załącznik 1A do SWZ"]
[]
["OPIS PRZEDMIOTU ZAMÓWIENIA - KALKULACJA CENY OFERTY"]
[{"$f":"MID(CELL(\"nazwa_pliku\",A1),FIND(\"]\",CELL(\"nazwa_pliku\",A1),1)+1,100)","v":"Część 14"}]
["L.T Eugon- bulion"]
[{"$f":"HYPERLINK(\"#'Suma'!A1\",\"wstecz\")","v":"wstecz"}]
[null,"L.p.","Przedmiot zamówienia","Szczegółowy opis","Opis oferowanego produktu",null,"Jednostka miary","Ilość","Cena jednostkowa brutto [zł] **","Wartość brutto [zł] "]
[{"$nulls":4},"Producent*","Nr katalogowy producenta*"]
[]
[null,"1.","L.T Eugon- bulion","• proszek                                                                                       • zastosowanie: do badań kosmetyków\n Skład g/l: \n - trypton -15,0 g/l;\n - pepton sojowy - 5,0 g/l; \n - tween 80 - 5 g/l,\n - triton X100 lub ecosurf - 1,0 g/l;\n - L-cystyna - 0,7 g/l; \n - chlorek sodu - 4,0 g/l; \n - siarczyn sodu - 0,2 g/l; \n - lecytyna - 1,0 g/l; \n - glukoza - 5,5 g/l.",null,null,"op. = \n500g",2,null,{"$f":"H10*I10","v":{"v":0,"d":"0.00"}}]
[null,"Cena oferty (brutto):",{"$nulls":7},{"$f":"SUM(J10:J10)","v":{"v":0,"d":"0.00"}}]
[null,"*","Należy wpisać nazwę producenta oraz numer katalogowy producenta oferowanego produktu. Niepodanie ww. danych będzie skutkować odrzuceniem oferty, chyba że dane te będą jednoznacznie wynikać z innych dokumentów dołączonych do oferty."]
[null,"**","Zawiera podatek od towarów i usług (VAT) wg obowiązującej stawki oraz koszty wszystkich świadczeń niezbędnych do wykonania zamówienia, w szczególności koszty transportu, ubezpieczenia, opakowania (także kaucjonowanego) itp."]
[]
[null,"Wymagania dodatkowe:"]
[]
[null,"1.","Do dostawy wymagany certyfikat jakości lub inny dokument potwierdzający jakość produktu w języku polskim lub angielskim w wersji papierowej lub dostępny w formie elektronicznej w miejscu wskazanym przez Wykonawcę (adres strony www). "]
[null,"2.","Certyfikat lub inny dokument musi zawierać:"]
[null,null,"• nazwę produktu,"]
[null,null,"• numer serii,"]
[null,null,"• nazwę producenta,"]
[null,null,"• data ważności lub okres ważności produktu,"]
[null,null,"• skład,"]
[null,null,"• ogólną charakterystykę,"]
[null,null,"• charakterystykę mikrobiologiczną (w tym wyniki kontroli mikrobiologicznej szczepami odniesienia z kolekcji WDCM i/lub ATCC)."]
[null,"3.","Okres ważności: min. 18 miesięcy od daty dostawy. W przypadku okresu ważności krótszego niż 18 miesięcy, wymagane jest min. ¾ okresu ważności deklarowanego przez producenta (zapisanego w certyfikacie jakości lub innm dokumencie do danej partii)"]
[null,"4.","Miejsce dostawy:","WSSE Kraków ul. Prądnicka 76, 31-202 Kraków"]

{"sheet":"Część 15","index":15,"n_rows":27,"n_cols":10,"rows_kept":27,"merged":[[0,6,0,9],[2,0,2,9],[3,0,3,9],[4,0,4,9],[6,1,8,1],[6,2,8,2],[6,3,8,3],[6,4,6,5],[6,6,8,6],[6,7,8,7],[6,8,8,8],[6,9,8,9],[7,4,8,4],[7,5,8,5],[11,1,11,8],[12,2,12,9],[13,2,13,9],[14,2,14,9],[18,2,18,9],[24,2,24,9]]}
[null,null,{"$f":"'Część 01'!$C$1","v":"AGZ.272.1.2024"},{"$nulls":3},"Załącznik 1A do SWZ"]
[]
["OPIS PRZEDMIOTU ZAMÓWIENIA - KALKULACJA CENY OFERTY"]
[{"$f":"MID(CELL(\"nazwa_pliku\",A1),FIND(\"]\",CELL(\"nazwa_pliku\",A1),1)+1,100)","v":"Część 15"}]
["Suplement selektywny D-cykloseryna (do podłoża TSC) "]
[{"$f":"HYPERLINK(\"#'Suma'!A1\",\"wstecz\")","v":"wstecz"}]
[null,"L.p.","Przedmiot zamówienia","Szczegółowy opis","Opis oferowanego produktu",null,"Jednostka miary","Ilość","Cena jednostkowa brutto [zł] **","Wartość brutto [zł] "]
[{"$nulls":4},"Producent*","Nr katalogowy producenta*"]
[]
[null,"1.","Suplement selektywny D-cykloseryna (do podłoża TSC) \n","np. Producent : bioMerieux \nnr kat. 42619\nlub produkt równoważny***\n• zastosowanie: dodatek wybiórczy do podłoża TSC do oznaczania Clostridium perfringens w wodzie,\n- D-cykloseryna - 0,4 g/l;\n• wydajność:  ampułka na 200 ml podłoża TSC.",null,null,"op. = 6 fiolek",4,null,{"$f":"H10*I10","v":{"v":0,"d":"0.00"}}]
[null,"2.","Suplement selektywny D-cykloseryna (do podłoża TSC) \n","np. Producent : bioMerieux \nnr kat. 42619\nlub produkt równoważny***\n• zastosowanie: dodatek wybiórczy do podłoża TSC do oznaczania Clostridium perfringens w wodzie,\n- D-cykloseryna - 0,4 g/l;\n• wydajność:  ampułka na 200 ml podłoża TSC.",null,null,"op. = 6 fiolek",4,null,{"v":0,"d":"0.00"}]
[null,"Cena oferty (brutto):",{"$nulls":7},{"$f":"SUM(J10:J11)","v":{"v":0,"d":"0.00"}}]
[null,"*","Należy wpisać nazwę producenta oraz numer katalogowy producenta oferowanego produktu. Niepodanie ww. danych będzie skutkować odrzuceniem oferty, chyba że dane te będą jednoznacznie wynikać z innych dokumentów dołączonych do oferty."]
[null,"**","Zawiera podatek od towarów i usług (VAT) wg obowiązującej stawki oraz koszty wszystkich świadczeń niezbędnych do wykonania zamówienia, w szczególności koszty transportu, ubezpieczenia, opakowania (także kaucjonowanego) itp."]
[null,"***","Wykonawca oferujący produkt innego producenta, o innym numerze katalogowym niż wskazany jako przykład zobowiązany jest dostarczyć certyfikaty potwierdzające równoważność oferowanego produktu z wymaganiami przedstawionymi w tabeli w języku polskim lub angielskim. Wymienione dokumenty nie muszą potwierdzać zastosowania odczynnika oraz wyglądu zewnętrznego."]
[]
[null,"Wymagania dodatkowe:"]
[]
[null,"1.","Do dostawy wymagany certyfikat jakości lub inny dokument potwierdzający jakość produktu w języku polskim lub angielskim w wersji papierowej lub dostępny w formie elektronicznej w miejscu wskazanym przez Wykonawcę (adres strony www)."]
[null,"2.","Certyfikat lub inny dokument musi zawierać:"]
[null,null,"• nazwę produktu,"]
[null,null,"• numer serii,"]
[null,null,"• nazwę producenta,"]
[null,null,"• data ważności lub okres ważności produktu."]
[null,"3.","Okres ważności: min. 12 miesięcy od daty dostawy  lub min. ¾ okresu ważności deklarowanego przez producenta (zapisanego w certyfikacie jakości lub innm dokumencie do danej partii, o którym mowa w pkt. 1)"]
[null,"4.","Miejsce dostawy:","WSSE w Krakowie  ul. Prądnicka 76, 31-202 Kraków - dla poz. 1\n"]
[{"$nulls":3},"WSSE Oddział Laboratoryjny w Tarnowie  ul. Mościckiego 10,  33-100 Tarnów - poz. 2      \n"]

{"sheet":"Część 16","index":16,"n_rows":30,"n_cols":10,"rows_kept":30,"merged":[[0,8,0,9],[2,0,2,9],[3,0,3,9],[4,0,4,9],[6,1,8,1],[6,2,8,2],[6,3,8,3],[6,4,6,5],[6,6,8,6],[6,7,8,7],[6,8,8,8],[6,9,8,9],[7,4,8,4],[7,5,8,5],[11,1,11,7],[12,2,12,9],[13,2,13,9],[17,2,17,9]]}
[null,null,{"$f":"'Część 01'!$C$1","v":"AGZ.272.1.2024"},{"$nulls":5},"Załącznik 1A do SWZ"]
[]
["OPIS PRZEDMIOTU ZAMÓWIENIA - KALKULACJA CENY OFERTY"]
[{"$f":"MID(CELL(\"nazwa_pliku\",A1),FIND(\"]\",CELL(\"nazwa_pliku\",A1),1)+1,100)","v":"Część 16"}]
["Suplementy Legionella spp. "]
[{"$f":"HYPERLINK(\"#'Suma'!A1\",\"wstecz\")","v":"wstecz"}]
[null,"L.p.","Przedmiot zamówienia","Szczegółowy opis","Opis oferowanego produktu",null,"Jednostka miary","Ilość","Cena jednostkowa brutto [zł] **","Wartość brutto [zł] "]
[{"$nulls":4},"Producent*","Nr katalogowy producenta*"]
[]
[null,"1.","Legionella Suplement (dodatek selektywny) ","• zastosowanie: dodatek selektywny do agaru BCYE z cysteiną do wybiórczej izolacji Legionella spp.; po dodaniu suplementu otrzymujemy agar GVPC;\n• skład ampułki: \n  - glicyna wolna od amoniaku 1,5 g,\n  - chlorowodorek wankomycyny 0,5 mg,\n  - siarczan polimyksyny 40 000 IU,\n  - cykloheksymid 40,0 mg,\n• jedna ampułka na 500 ml podłoża GVPC.\n",null,null,"ampułka",5,null,{"$f":"H10*I10","v":{"v":0,"d":"0.00"}}]
[null,"2.","Legionella Suplement (dodatek wzrostowy)\n\n","• zastosowanie: dodatek wzrostowy do agaru BCYE baza dla hodowli Legionella spp.; po dodaniu suplementu otrzymujemy agar BCYE z cysteiną;\n• Skład ampułki na 500ml:\n- Bufor ACES – 5,0g\n- Żelaza (III) pirofosforan – 0,125g\nWodorotlenek potasu – 1,4g\nL-cysteiny chlorowodorek – 0,2g\nAlfa-Ketoglutaran sól jednopotasowa – 0,5g\n• Kompatybilna do bazy Legionella agar nie posiadającej buforu ACES, wodorotlenek potasu i Alfa-Ketoglutaranu soli jednopotasowej (baza producent: Biomaxima nr kat. PS163)\n\n",null,null,"ampułka",5,null,{"$f":"H11*I11","v":{"v":0,"d":"0.00"}}]
[null,"Cena oferty (brutto):",{"$nulls":7},{"$f":"SUM(J10:J11)","v":{"v":0,"d":"0.00"}}]
[null,"*","Należy wpisać nazwę producenta oraz numer katalogowy producenta oferowanego produktu. Niepodanie ww. danych będzie skutkować odrzuceniem oferty, chyba że dane te będą jednoznacznie wynikać z innych dokumentów dołączonych do oferty."]
[null,"**","Zawiera podatek od towarów i usług (VAT) wg obowiązującej stawki oraz koszty wszystkich świadczeń niezbędnych do wykonania zamówienia, w szczególności koszty transportu, ubezpieczenia, opakowania (także kaucjonowanego) itp."]
[]
[null,"Wymagania dodatkowe:"]
[]
[null,"1.","Do dostawy wymagany certyfikat jakości lub inny dokument potwierdzający jakość produktu w języku polskim lub angielskim w wersji papierowej lub dostępny w formie elektronicznej w miejscu wskazanym przez Wykonawcę (adres strony www)."]
[null,"2.","Certyfikat lub inny dokument musi zawierać:"]
[null,null,"• nazwę produktu,"]
[null,null,"• numer serii,"]
[null,null,"• nazwę producenta,"]
[null,null,"• datę ważności lub okres ważności produktu,"]
[null,null,"• datę kontroli produktu"]
[null,null,"• skład,"]
[null,null,"• ogólną charakterystykę,"]
[null,null,"• charakterystykę mikrobiologiczną (w tym wyniki kontroli mikrobiologicznej szczepami odniesienia z kolekcji WDCM i/lub ATCC)."]
[null,"3.","Okres ważności: min. 12 miesięcy od daty dostawy."]
[null,"4.","Produkty muszą być ze sobą kompatybilne."]
[null,"5.","Miejsce dostawy:","WSSE Oddział Laboratoryjny w Tarnowie  ul. Mościckiego 10,  33-100 Tarnów \n"]